Cogmind - Beta 16 @@@ ROGUE MODE // 2025.11.06 @ 04:30:06 Player: cptwinky Result: Establishing 0b11! Performance ------------- Evolutions (9) 4500 Regions Visited (37) 7400 Robots Destroyed (541) 2705 Value Destroyed (26233) 26233 Prototype IDs (371) 7420 Alien Tech Used (1) 200 Bonus (36274) 36274 TOTAL SCORE: 84732 Bonus ------- High Alert Combat Kills 2685 Follower Combat Kills 3344 Entered Garrisons 400 Network Hubs Disabled 200 Met Imprinter 300 Acquired ECA 300 Met Zhirov 300 Met Warlord at Base 500 MAIN.C Attacked Warlord 500 Warlord Defense Kills 1168 Built Enhanced Grunts 300 A7 Reached Mainframe 300 Met R17 at Cetus 500 Hacked Protovariant 500 Met R17 at Research 2000 Destroyed MAIN.C Guards 500 Met MAIN.C 5000 Hacked MAIN.C 300 Destroyed MAIN.C Shell 5000 Destroyed MAIN.C 10000 Win 3000 Friendly Fire -823 Cogmind --------- Core Integrity 1281/1600 Matter 300/300 Energy 628/650 System Corruption 33% Temperature Cool (11) Movement Treading (152) Location 0b11 Command Parts ------- > --- POWER (3) -------- Micro Antimatter Reactor Quantum Reactor Quantum Reactor > --- PROPULSION (6) --- Improved Medium Treads Advanced Medium Treads Centrium Heavy Treads Biometal Heavy Treads > --- UTILITY (12) ----- Improved Cooling System Advanced Coolant Injector Huge Storage Unit Experimental Optical Array Experimental Targeting Computer Experimental Core Analyzer Improved Core Shielding Improved Utility Shielding Graphene Brace Advanced Force Field > --- WEAPON (4) ------- Nova Cannon Mass Driver Enhanced Hardcell Cannon Advanced Remote Datajack > --- INVENTORY (25) --- Reinforced Antimatter Reactor Reinforced Antimatter Reactor Advanced Coolant Injector Energy Well (350) Energy Well (350) Experimental Energy Well (600) Experimental Matter Compressor (500) Improved Utility Shielding Advanced Point Defense System Improved Potential Cannon Enhanced Hardcell Cannon Gamma Bomb Array Ragnarok Missile Launcher Plasma Lance Peak State ------------ > --- POWER ------------ Graviton Reactor Quantum Reactor Quantum Reactor > --- PROPULSION ------- Centrium Heavy Treads Centrium Heavy Treads Advanced Heavy Siege Treads > --- UTILITY ---------- Advanced Cooling System Huge Storage Unit Experimental Optical Array Advanced Signal Interpreter 0b10 Decoder Chip [Looter] Experimental Targeting Computer Experimental Core Analyzer Improved Powered Armor Graphene Brace Advanced Force Field Improved Hacking Suite Advanced Hacking Suite > --- WEAPON ----------- Nova Cannon Improved Potential Cannon Hardcell Cannon > --- INVENTORY -------- Quantum Reactor Quantum Reactor Centrium Heavy Treads Advanced Coolant Injector Experimental Energy Well Experimental Matter Compressor Advanced Transmission Jammer Improved Utility Shielding Centrium Medium Armor Plating Advanced Point Defense System Improved System Shield Advanced Component Analysis Suite Advanced Trap Extractor Transdimensional Reconstructor Long-range Proton Cannon Mass Driver Hardcell Cannon Linear Accelerator Enhanced Hardcell Cannon Enhanced Hardcell Cannon Gamma Bomb Array Ragnarok Missile Launcher Advanced Remote Datajack Plasma Lance [Rating: 215] Favorites ----------- Power Quantum Reactor Engine Heavy Deuterium Engine Power Core Light Nuclear Core Reactor Quantum Reactor Propulsion Armored Treads Treads Armored Treads Leg Carbon-fiber Leg Hover Unit Cooled Antigrav System Flight Unit Makeshift Flight Unit Utility Huge Storage Unit Device Improved Sensor Array Storage Huge Storage Unit Processor Core Analyzer Hackware Improved Hacking Suite Protection Improved Medium Armor Plating Weapon Improved Medium Laser Energy Gun Improved Medium Laser Energy Cannon Nova Cannon Ballistic Gun Railgun Ballistic Cannon Enhanced Gauss Cannon Launcher Long-range Missile Launcher Special Weapon Advanced Remote Datajack Impact Weapon Flail Slashing Weapon Ripper Piercing Weapon Plasma Lance Special Melee Weapon Improved Datajack Build | -11 -10 -10 -9 -9 -9 -8 -8 -8 -8 -8 -8 -8 -7 -7 -7 -7 -6 -6 -6 -6 -6 -6 -5 -5 -5 -5 -4 -4 -4 -4 -4 -3 -3 -3 -2 -1 -1 ------- Run | Yrd Mat Min Mat Min Exi Min Mat Gar Mat Gar Mat Sto Fac Low Low Zio Pro Fac Ext Cet Arc Hub Fac Upp Upp War Pro Fac Upp Upp Zhi Pro Res Tes Res Acc Com Slots Evolved 18 | . . . 2 . . . 2 . . . . . 2 . . . . 2 . . . . 2 . . . . 2 . . . . 2 . 2 2 . Power 2 | . . . . . . . . . . . . . . . . . . . . . . . 1 . . . . . . . . . . . 1 . . Propulsion 4 | . . . 1 . . . . . . . . . 1 . . . . . . . . . . . . . . 1 . . . . 1 . . . . Utility 10 | . . . 1 . . . 1 . . . . . 1 . . . . 2 . . . . 1 . . . . 1 . . . . 1 . 1 1 . Weapon 2 | . . . . . . . 1 . . . . . . . . . . . . . . . . . . . . . . . . . . . . 1 . Parts Attached 285 | 6 8 2 25 5 2 3 4 11 13 11 3 24 6 9 1 7 4 5 7 6 4 . 6 6 5 11 8 12 3 2 5 1 10 11 9 8 22 Power 30 | 1 2 1 3 . . . . 2 3 1 1 2 . 1 . . . . . 1 . . 1 . . 2 1 . . . 2 . . 1 2 . 3 Engine 11 | 1 2 1 3 . . . . . . . 1 2 . 1 . . . . . . . . . . . . . . . . . . . . . . . Core 6 | . . . . . . . . 2 3 1 . . . . . . . . . . . . . . . . . . . . . . . . . . . Reactor 13 | . . . . . . . . . . . . . . . . . . . . 1 . . 1 . . 2 1 . . . 2 . . 1 2 . 3 Propulsion 53 | 2 1 1 9 2 . . 1 3 6 1 1 6 1 . . 2 . . . 3 . . 1 . . 2 1 2 . . . . 3 . 1 . 4 Treads 49 | 2 1 1 9 2 . . 1 2 6 1 1 6 1 . . 1 . . . 3 . . 1 . . . 1 2 . . . . 3 . 1 . 4 Leg 2 | . . . . . . . . 1 . . . . . . . . . . . . . . . . . 1 . . . . . . . . . . . Wheel . | . . . . . . . . . . . . . . . . . . . . . . . . . . . . . . . . . . . . . . Hover 1 | . . . . . . . . . . . . . . . . . . . . . . . . . . 1 . . . . . . . . . . . Flight 1 | . . . . . . . . . . . . . . . . 1 . . . . . . . . . . . . . . . . . . . . . Utility 125 | 1 3 . 6 2 . . 1 5 4 5 1 9 4 6 . 2 1 5 2 1 3 . 3 5 4 6 3 8 1 1 2 1 3 8 4 4 11 Device 52 | . . . . . . . . 3 . 4 . 3 1 3 . 1 1 3 1 . 1 . 2 3 3 2 2 4 1 1 1 1 . 4 1 3 3 Storage 9 | 1 1 . 1 . . . . . 1 . . 1 . . . . . . . . . . . . . 1 . . . . . . . 2 . . 1 Processor 26 | . 1 . 1 . . . . 1 1 . . 3 2 2 . 1 . 1 . . . . 1 1 . 2 . 2 . . . . 3 1 2 . 1 Hackware 8 | . . . . . . . 1 . . . . 1 . . . . . 1 . . 2 . . . . . . 1 . . . . . 1 . 1 . Protection 30 | . 1 . 4 2 . . . 1 2 1 1 1 1 1 . . . . 1 1 . . . 1 1 1 1 1 . . 1 . . . 1 . 6 Artifact . | . . . . . . . . . . . . . . . . . . . . . . . . . . . . . . . . . . . . . . Weapon 77 | 2 2 . 7 1 2 3 2 1 . 4 . 7 1 2 1 3 3 . 5 1 1 . 1 1 1 1 3 2 2 1 1 . 4 2 2 4 4 Energy Gun 25 | 2 . . 2 . . 1 1 1 . 2 . 4 1 2 1 . 2 . 3 1 1 . . . . 1 . . . . . . . . . . . Energy Cannon 8 | . . . 1 . . . . . . . . . . . . 1 . . . . . . . . 1 . . . 1 . . . 1 2 . 1 . Ballistic Gun 5 | . . . 1 . . . . . . . . . . . . 1 . . . . . . . . . . 2 . 1 . . . . . . . . Ballistic Cannon 16 | . 2 . 1 . . 2 1 . . . . . . . . . . . . . . . . . . . 1 2 . 1 . . 1 . 1 2 2 Launcher 11 | . . . 1 1 1 . . . . . . 3 . . . . . . . . . . 1 . . . . . . . . . 2 . . 1 1 Special Weapon 3 | . . . . . . . . . . 1 . . . . . . . . 1 . . . . . . . . . . . . . . . . . 1 Impact Weapon 2 | . . . 1 . . . . . . . . . . . . . . . . . . . . 1 . . . . . . . . . . . . . Slashing Weapon 4 | . . . . . . . . . . 1 . . . . . . 1 . 1 . . . . . . . . . . . 1 . . . . . . Piercing Weapon 1 | . . . . . . . . . . . . . . . . . . . . . . . . . . . . . . . . . . . 1 . . Special Melee Weapon 2 | . . . . . 1 . . . . . . . . . . 1 . . . . . . . . . . . . . . . . . . . . . Unidentified Prototypes 31 | . . . 4 . . . . . . . . 1 . . . 1 . . . 2 . . 1 1 . 8 1 . . . 4 . 1 5 2 . . Corrupted Parts 2 | . . . . . . . . . . . . . . . . 1 . . . 1 . . . . . . . . . . . . . . . . . System Corruption 5 | . . . . . . . . . . . . . . . . 1 . . . 4 . . . . . . . . . . . . . . . . . Parts Lost 46 | . 1 . 1 1 . . . 9 1 4 . 6 . . . . . . 3 . . . . . . . 3 1 . . . . 1 . . . 15 Power 6 | . 1 . 1 . . . . . 1 1 . . . . . . . . . . . . . . . . 1 . . . . . . . . . 1 Propulsion 10 | . . . . . . . . 3 . . . 2 . . . . . . . . . . . . . . . 1 . . . . . . . . 4 Utility 16 | . . . . 1 . . . 3 . 1 . 2 . . . . . . 1 . . . . . . . . . . . . . 1 . . . 7 Weapon 14 | . . . . . . . . 3 . 2 . 2 . . . . . . 2 . . . . . . . 2 . . . . . . . . . 3 Highest Loss Streak 6 | . 1 . 1 1 . . . 4 1 1 . 2 . . . . . . 1 . . . . . . . 3 1 . . . . 1 . . . 6 To Critical Strikes . | . . . . . . . . . . . . . . . . . . . . . . . . . . . . . . . . . . . . . . Average Backups 22 | 3 9 13 18 19 19 19 19 16 21 23 24 24 24 24 24 21 25 24 24 23 22 23 21 23 23 23 23 23 23 23 24 24 23 23 22 22 21 Power 1 | . . . . . . . 1 2 2 1 1 1 2 1 1 . 1 1 2 1 1 1 . . . . 1 1 2 2 2 2 2 1 . 1 2 Propulsion 1 | 1 3 4 3 2 1 1 1 1 3 4 4 2 1 2 2 1 1 2 2 2 2 2 1 1 1 1 1 . 1 1 1 1 . 1 1 1 1 Utility 11 | . 2 4 6 5 6 6 6 4 6 11 12 12 12 12 12 9 13 11 10 11 12 13 14 15 14 13 13 14 14 14 14 14 13 12 11 11 9 Weapon 5 | 1 2 3 7 9 10 8 7 5 6 4 4 5 6 5 6 8 6 6 6 5 4 4 4 5 6 6 5 5 4 4 4 4 4 6 6 7 7 Tool/Special . | . . . . . . . . . . . . . . . . . . . . . . . . . . . . . . . . . . . . . . Unused Backups 70 | . 3 1 12 2 . . . . 2 . . 1 3 1 1 . 1 . . 7 1 . . 1 1 1 . 1 1 . 2 . 2 5 6 3 12 Power 5 | . . . . . . . . . . . . . . 1 . . . . . 2 . . . . . . . . . . . . . . . . 2 Propulsion 6 | . 1 1 2 . . . . . . . . . . . . . 1 . . 1 . . . . . . . . . . . . . . . . . Utility 36 | . . . 1 2 . . . . . . . 1 2 . 1 . . . . 3 . . . 1 1 1 . 1 1 . 2 . 1 4 3 3 8 Weapon 22 | . 2 . 9 . . . . . 2 . . . 1 . . . . . . 1 1 . . . . . . . . . . . 1 1 3 . 1 Tool/Special 1 | . . . . . . . . . . . . . . . . . . . . . . . . . . . . . . . . . . . . . 1 Average Slot Usage (%) 92 | . 98 100 99 100 100 100 88 98 99 99 100 95 99 100 100 99 100 99 100 97 92 92 87 87 87 87 85 81 84 84 81 84 80 80 85 86 85 Engine 4 | . 13 14 11 11 11 11 9 3 . . 5 9 7 7 7 7 7 6 6 1 . . . . . . . . . . . . . . . . . Reactor 3 | . . . . . . . . . . . . . . . . . . . . 4 6 6 10 11 11 11 8 5 5 5 4 5 4 4 13 12 12 Treads 21 | . 28 28 33 33 33 33 27 25 27 27 27 26 30 30 30 29 30 26 26 24 20 19 11 11 11 10 11 13 15 15 15 15 14 14 13 12 12 Device 8 | . . . . . . . . 6 20 17 18 11 6 7 7 6 7 6 6 6 5 6 10 10 10 10 10 9 10 10 8 9 8 10 12 11 14 Storage 6 | . 14 14 11 11 11 11 9 9 9 9 9 9 7 7 7 7 7 6 6 6 6 6 5 5 5 5 5 5 5 5 5 5 4 4 4 4 4 Processor 15 | . 10 14 11 11 11 11 9 7 6 . . . 7 14 15 15 15 20 20 20 20 20 17 17 17 17 17 21 21 21 21 21 22 23 21 20 15 Hackware 3 | . . . . . . . . 6 . . . 4 7 . . . . 5 6 6 6 6 5 5 5 5 5 5 5 5 5 5 3 2 4 7 1 Protection 6 | . 1 . 10 11 11 11 9 4 . 9 9 9 7 6 7 7 7 6 6 6 6 6 5 5 5 5 5 5 5 5 5 5 4 3 4 4 9 Energy Gun 10 | . 5 . . . . . 3 8 26 25 26 23 22 20 22 16 21 18 19 19 14 16 16 16 16 12 6 . . . . . . . . . . Energy Cannon 1 | . . . 4 11 11 5 . . . . . . . . . . . . . . . . . . . . . . . . . . 1 3 4 3 3 Ballistic Gun 1 | . . . 4 11 1 5 . . . . . . . . . . . . . . . . . . . . 7 5 . . . . . . . . . Ballistic Cannon 5 | . 22 28 11 . . 11 21 12 . . . . . . . . . . . . . . . . . . 1 9 14 13 10 14 11 8 8 11 9 Peak Build Rating 215 | 6 8 8 21 22 21 21 26 29 37 39 39 38 49 52 51 52 55 64 66 91 94 94 121 122 121 130 133 139 140 140 141 142 159 176 196 206 215 Average Rating 85 | 5 7 8 16 21 19 19 23 25 31 37 38 34 46 47 50 48 52 61 62 80 92 93 114 116 116 117 125 133 137 139 136 140 152 164 183 200 198 On Entrance 78 | . 6 8 8 21 21 19 19 26 29 37 38 38 37 48 50 50 52 54 62 66 91 93 94 117 122 115 127 127 137 139 138 141 141 152 163 193 204 Avg Prop Armor Cover (%) 5 | . . . . . . . . 5 . . . . . . . . . . . . . . . . . . . . . . . . . . . . . Naked Turns . | . . . . . . . . . . . . . . . . . . . . . . . . . . . . . . . . . . . . . . Heaviest Build 214 | 11 29 29 59 62 57 58 62 64 103 105 110 112 109 112 111 111 113 114 113 119 119 119 143 146 151 160 161 168 173 173 172 173 176 176 196 214 211 Greatest Support 240 | 40 40 40 60 60 60 60 62 62 60 60 60 60 80 80 80 80 80 80 80 120 120 120 160 160 160 160 160 190 190 190 190 190 230 230 240 240 240 Greatest Overweight (x) 1 | . . . . 1 . . . 1 1 1 1 1 1 1 1 1 1 1 1 1 . 1 . . . 1 1 1 . . . . . . . . . Average Overweight (x) . | . . . . . . . . . . 1 1 1 1 1 1 1 1 1 1 . . . . . . . . . . . . . . . . . . Largest Inventory Capacity 25 | 8 15 15 20 20 20 20 20 20 25 25 25 25 25 25 25 25 25 25 25 25 25 25 25 25 25 25 25 25 25 25 25 25 25 25 25 25 25 Average Capacity 23 | 7 12 15 19 20 20 20 20 20 23 25 25 25 25 25 25 25 25 25 25 25 25 25 25 25 25 25 25 25 25 25 25 25 25 25 25 25 25 Most Carried 25 | 6 15 15 20 20 20 20 20 20 25 25 25 25 25 25 25 25 25 25 25 25 25 25 25 25 25 25 25 25 25 25 25 25 25 25 25 25 25 Average Carried 23 | 3 9 14 18 19 19 19 19 16 21 23 24 24 24 24 24 21 24 24 24 24 24 24 22 24 24 24 24 24 24 24 24 25 24 24 24 24 23 Final Capacity 25 | 8 15 15 20 20 20 20 20 20 25 25 25 25 25 25 25 25 25 25 25 25 25 25 25 25 25 25 25 25 25 25 25 25 25 25 25 25 25 Final Carried 25 | 6 14 15 20 20 20 20 19 19 25 22 25 25 25 25 25 25 25 25 24 25 25 25 23 25 25 25 25 25 25 25 25 25 25 25 25 25 15 Class Distribution -------------------- 18% | Scavenger-Tank 18% | Mutant 11% | Skirmisher 10% | Trapper-Tank 9% | Trapper-Gunner 7% | Commander-Gunner 5% | Gunner 4% | Scavenger-Mutant 4% | Scavenger-Gunner 4% | Hacker-Tank Dominant Class ---------------- Mutant | -10/Materials Mutant | -10/Mines Mutant | -9/Materials Mutant | -9/Mines Scavenger-Mutant | -9/Exiles Mutant | -8/Mines Gunner | -8/Materials Scavenger-Gunner | -8/Garrison Scavenger-Gunner | -8/Materials Scavenger-Tank | -8/Garrison Tank | -8/Materials Scavenger-Tank | -8/Storage Commander-Gunner | -7/Factory Skirmisher | -7/Lower Caves Skirmisher | -7/Lower Caves Mutant | -7/Zion Skirmisher | -6/Proximity Caves Gunner | -6/Factory Commander-Gunner | -6/Extension Commander-Gunner | -6/Cetus Commander-Mutant | -6/Archives Commander-Mutant | -6/Hub_04(d) Scavenger-Tank | -5/Factory Scavenger-Tank | -5/Upper Caves Scavenger-Tank | -5/Upper Caves Scavenger-Mutant | -5/Warlord Scavenger-Tank | -4/Proximity Caves Trapper-Tank | -4/Factory Trapper-Gunner | -4/Upper Caves Trapper-Gunner | -4/Upper Caves Trapper-Mutant | -4/Zhirov Trapper-Gunner | -3/Proximity Caves Trapper-Tank | -3/Research Trapper-Tank | -3/Testing Trapper-Tank | -2/Research Hacker-Tank | -1/Access Scavenger-Tank | -1/Command Resources | -11 -10 -10 -9 -9 -9 -8 -8 -8 -8 -8 -8 -8 -7 -7 -7 -7 -6 -6 -6 -6 -6 -6 -5 -5 -5 -5 -4 -4 -4 -4 -4 -3 -3 -3 -2 -1 -1 ----------- Run | Yrd Mat Min Mat Min Exi Min Mat Gar Mat Gar Mat Sto Fac Low Low Zio Pro Fac Ext Cet Arc Hub Fac Upp Upp War Pro Fac Upp Upp Zhi Pro Res Tes Res Acc Com Matter Collected 17145 | 260 409 286 861 223 20 166 96 597 188 416 95 720 360 172 198 230 275 148 304 138 136 50 170 420 427 672 670 1125 548 287 100 524 353 983 293 1655 2570 Remotely 153 | . . . . . . . . . . . . . . . . . . . . . . . . . . . 153 . . . . . . . . . . Salvage Created 24451 | 170 529 216 1496 190 . 236 136 647 566 1054 344 1498 270 554 267 . 28 739 1154 . 297 87 39 662 420 503 1017 995 412 278 101 618 322 1528 122 2041 4915 Parts 1028 | 14 38 17 107 4 . 12 5 25 32 47 14 69 13 14 19 . 6 23 40 . 18 3 3 15 27 13 25 40 15 13 . 15 18 100 7 88 129 Haulers Intercepted 19 | . 2 . 5 . . . . . 1 . . 6 1 . . . . . . . . . . 1 . . . 1 . . . . 1 . . 1 . Recyclers Shooed 12 | . . . 2 . . 1 . . 2 . . 1 1 . . . . 1 . . . . . . . . . . . . . . . . . 3 1 Parts Field Recycled . | . . . . . . . . . . . . . . . . . . . . . . . . . . . . . . . . . . . . . . Retrieved Matter . | . . . . . . . . . . . . . . . . . . . . . . . . . . . . . . . . . . . . . . Parts Self-Destructed 110 | . . . . . . . . . . . . . . 8 17 . 16 . . . . . . 8 25 . 20 . 4 2 . 10 . . . . . Prevented 16 | . . . . . . . . . . . . . . . . . . . . . . . . . . . . . 4 10 . 2 . . . . . Parts Restored . | . . . . . . . . . . . . . . . . . . . . . . . . . . . . . . . . . . . . . . Kills | -11 -10 -10 -9 -9 -9 -8 -8 -8 -8 -8 -8 -8 -7 -7 -7 -7 -6 -6 -6 -6 -6 -6 -5 -5 -5 -5 -4 -4 -4 -4 -4 -3 -3 -3 -2 -1 -1 ------- Run | Yrd Mat Min Mat Min Exi Min Mat Gar Mat Gar Mat Sto Fac Low Low Zio Pro Fac Ext Cet Arc Hub Fac Upp Upp War Pro Fac Upp Upp Zhi Pro Res Tes Res Acc Com Combat Hostiles Destroyed 448 | . 18 9 36 10 . 7 3 20 12 33 7 34 3 9 10 . 4 13 17 . . 1 . 12 13 9 20 18 8 7 . 18 4 23 2 27 41 Melee 2 | . . . . . . . . . . 1 . . . . . . . . . . . . . . . . . . . . . . 1 . . . . Guns 147 | . 2 . 3 1 . . . 7 9 20 7 21 2 9 5 . . 12 15 . . 1 . 8 6 5 11 3 . . . . . . . . . Cannons 143 | . 16 9 25 8 . . 1 10 . . . . . . . . . . . . . . . . . . . 10 1 1 . 5 3 17 2 20 15 AOE 113 | . . . 8 1 . 6 2 3 . 10 . 12 . . 5 . 4 . . . . . . 3 7 4 8 5 4 4 . 11 . 3 . 4 9 Classes Destroyed 27 | 2 4 2 4 1 . 1 . 3 . . . 1 1 1 . . . . . . . . . . 2 1 2 . . . . . . 1 . . 1 Worker 15 | . . 1 1 1 . 1 . . . . . 3 . . . . . . . . . . . . . . . . . . . . . 3 . 2 3 Builder 10 | . . 1 1 . . . . . . . . 3 . . . . . 1 . . . . . . . . . . . . . . 1 . . 3 . Tunneler 7 | 5 . . 1 . . 1 . . . . . . . . . . . . . . . . . . . . . . . . . . . . . . . Hauler 19 | . 2 . 5 . . . . . 1 . . 6 1 . . . . . . . . . . 1 . . . 1 . . . . 1 . . 1 . Recycler 12 | 1 . . 2 . . 1 . . . . . . 1 . . . . . 1 . . . . . . . . . . . . . . . . 4 2 Minesweeper 2 | . . . . . . . . . . . . . . . . . . . . . . . . . . . 2 . . . . . . . . . . Mechanic 2 | . . . . . . . . . . . . . . . . . . . . . . . . . . . . . . . . . . 1 . . 1 Operator 18 | . 2 . . . . . 1 . 2 . . 1 . . . . . . 1 . 7 . . . . . . 2 . . . . . . 1 . 1 Drone 2 | . . . . . . . . . . . . . . . . . . . . . . . . . . . 2 . . . . . . . . . . Watcher 12 | . . . 1 . . . . . . . . 1 . . . . 1 . . . . 1 1 . . . . . . . . . 2 2 . 1 2 Swarmer 91 | . 6 3 7 . . 3 . . 4 11 . 3 . 1 7 . 4 . . . . . . . 5 . 6 . 5 4 . 8 1 3 . 4 6 Saboteur 2 | . . . . . . . . . . . . . . . . . . . . . . . . . . . . . . . . . . . . . 2 Grunt 163 | . 12 6 19 . . 3 2 10 4 7 5 19 1 2 . . . 9 7 . . . . 8 4 4 6 10 . 2 . 8 3 . . 2 10 Brawler 15 | . . . 1 . . . . . 1 1 . 4 . 1 . . . 1 . . . . . 2 . . . . . . . . . 1 . . 3 Duelist 13 | . . . . . . . . . . . . 1 . 2 2 . . 1 1 . . . . 1 . . . . . . . 1 . 1 . . 3 Protector 3 | . . . 1 . . . . . . . . 1 . . . . . . . . . . . . . 1 . . . . . . . . . . . Sentry 51 | . . . 8 2 . . 1 3 2 3 2 5 . 2 1 . . . 8 . . . . 1 1 . 2 2 1 1 . 1 . 3 . 1 1 Demolisher 1 | . . . . . . . . 1 . . . . . . . . . . . . . . . . . . . . . . . . . . . . . Specialist 6 | . . . . . . . . 3 . 1 . . . . . . . . . . . . . . . . . . . . . . . . . 2 . Hunter 25 | . . . . . . 1 . . 1 1 . 1 . . . . . . 1 . . 1 . . . 1 4 2 2 . . . . 2 . 4 4 Programmer 57 | . . . . . . . . 3 . 9 . . 1 . . . . 2 . . . . . . 2 2 . 4 . . . . . 13 2 14 5 Heavy 1 | . . . . . . . . . . . . . 1 . . . . . . . . . . . . . . . . . . . . . . . . Behemoth 2 | . . . . . . . . . . . . . . . . . . . . . . . . . 1 . . . . . . . . . . . 1 M Guard 2 | . . . . . . . . . . . . . . . . . . . . . . . . . . . . . . . . . . . . . 2 Combat Programmer 2 | . . . . . . . . . . . . . . . . . . . . . . . . . . . . . . . . . . . . . 2 Executioner 1 | . . . . . . . . . . . . . . . . . . . . . . . . . . 1 . . . . . . . . . . . Packrat 2 | . . . . . . . . . . . . . . . . . . . . . . . . . . . . . 2 . . . . . . . . Samaritan 1 | . . . . . . . . . . . . . . . . . . . . . . . . . 1 . . . . . . . . . . . . Assembled 8 | . . . . 8 . . . . . . . . . . . . . . . . . . . . . . . . . . . . . . . . . Thug 2 | . . . . . . . . . . . . . . . . . . . . . 1 . . . . 1 . . . . . . . . . . . Mutant 2 | . . . . . . . . . . . . . . 1 1 . . . . . . . . . . . . . . . . . . . . . . Commander 1 | . . . . . . . . . . . . . . 1 . . . . . . . . . . . . . . . . . . . . . . . Best Kill Streak 13 | 4 5 3 6 4 . 6 2 3 3 8 3 10 2 5 4 . 4 4 4 . 2 1 1 6 5 3 13 4 4 4 . 6 3 3 2 10 11 Combat Bots Only 13 | . 5 3 5 4 . 3 2 3 2 8 3 9 2 5 4 . 4 4 4 . . 1 . 5 5 3 13 4 4 4 . 6 3 3 2 4 10 Max Kills in Single Turn 5 | 1 1 1 4 1 . 4 1 1 1 4 1 4 1 2 1 . 4 2 2 . 1 1 1 2 2 3 3 3 2 3 . 2 1 2 1 5 4 Gunslinging 1 | . . . . . . . . . . . . . . 1 . . . 1 1 . . . . . . . 1 . . . . . . . . . . Exploded 4 | . . . 3 1 . 2 1 1 . 4 . 3 . . 1 . 4 . . . . . . 1 2 2 3 3 2 3 . 2 . 2 . 4 4 Melee 1 | . . . . . . . . . . 1 . . . . . . . . . . . . . . . . . . . . . . 1 . . . . Uniques/NPCs Destroyed 2 | . . . . . . . . . . . . . . . . . . . . . . . . . . . . . . . . . . . . . 2 MAIN.C Shell (-1/Command) MAIN.C (-1/Command) Combat | -11 -10 -10 -9 -9 -9 -8 -8 -8 -8 -8 -8 -8 -7 -7 -7 -7 -6 -6 -6 -6 -6 -6 -5 -5 -5 -5 -4 -4 -4 -4 -4 -3 -3 -3 -2 -1 -1 -------- Run | Yrd Mat Min Mat Min Exi Min Mat Gar Mat Gar Mat Sto Fac Low Low Zio Pro Fac Ext Cet Arc Hub Fac Upp Upp War Pro Fac Upp Upp Zhi Pro Res Tes Res Acc Com Hostile Shots Fired 2070 | . 68 30 95 29 . 17 8 92 39 124 14 117 19 55 42 . 14 51 208 9 . 28 . 44 46 12 188 71 39 8 . 44 31 60 8 154 306 Missed 613 | . 15 13 24 10 . 3 3 21 12 38 8 32 7 25 13 . 6 14 79 2 . 7 . 12 18 2 59 26 11 4 . 9 9 20 4 39 68 Intercepted 6 | . . . . . . . . . . . . . . . . . . . . . . . . . . . . . . . . . . . . . 6 Hits 1457 | . 53 17 71 19 . 14 5 71 27 86 6 85 12 30 29 . 8 37 129 7 . 21 . 32 28 10 129 45 28 4 . 35 22 40 4 115 238 Melee 13 | . . . . . . . . . . . . 1 . 3 3 . . . . . . 1 . . . . . . . . . . . 3 . . 2 Projectile 1444 | . 53 17 71 19 . 14 5 71 27 86 6 84 12 27 26 . 8 37 129 7 . 20 . 32 28 10 129 45 28 4 . 35 22 37 4 115 236 AOE 25 | . . . . 6 . . . 15 . . . . . . . . . . . . . . . . . . . . . . . . . . 1 . 3 Critical Strikes 70 | . . . 1 . . . 1 9 1 7 2 5 . 1 1 . . 1 . . . 1 . 2 1 . 5 2 . . . 3 3 1 1 11 11 Actively Blocked 22 | . . . . . . . . . . . . . . . . . . . . . . . . . . . . . . . . . . 1 1 10 10 Part Disruptions 6 | . . . . . . . . . . . . . . . . . . . . . . . . . . . . . . . . . . . . . 6 Actively Blocked 1 | . . . . . . . . . . . . . . . . . . . . . . . . . . . . . . . . . . . . . 1 Damage Taken 23317 | . 511 207 894 442 . 218 83 1539 389 1276 95 1372 169 410 475 . 102 643 1070 106 . 314 . 629 373 141 1932 826 243 40 . 352 361 607 148 1550 5800 Core 1672 | . 103 25 75 77 . 37 . 132 32 193 . 106 . 71 22 . . 55 49 . . 6 . 118 . 37 83 19 . . . 10 40 63 . 75 244 Absorbed by Shields 5562 | . . . . . . . . . . 9 . . . . 16 . . . 298 102 . . . . 145 142 429 169 193 41 . 365 204 357 58 1391 1643 Reduced by Siege Mode 484 | . . . . . . . . . . . . . . . . . . . . . . . . 17 3 . 47 6 . 3 . . . 39 . 38 331 Redirected to Shielding 340 | . 11 . . . . . . . . . . . . . . . . . . . . . . . . . . . . . . . . . . . 329 Ignored by Resistances 15 | . . . . 15 . . . . . . . . . . . . . . . . . . . . . . . . . . . . . . . . . Regen/Repaired (Parts) 3690 | . . . 36 . . . 66 . 196 . . 264 . . . 925 . . . . . . . . . 111 . 790 . . . . 521 566 . 215 . Core Remaining (%) 75 | 100 . 48 . . . 52 . . . . . 15 . . . . 86 . . . . 87 . . . . 76 . . . . 97 . 92 100 . 80 Volleys Fired 1200 | 13 51 18 85 26 . 11 9 75 28 61 13 76 6 18 16 . 4 46 38 5 . 2 4 29 23 20 51 48 21 13 . 41 23 102 16 84 124 Largest 4 | 2 2 2 2 2 . 2 2 3 3 3 3 3 3 3 3 . 3 3 3 3 . 3 3 3 3 3 3 3 3 1 . 3 3 3 3 4 4 Hottest 281 | 90 90 60 124 91 . 124 66 168 168 216 216 216 216 216 216 . 192 168 211 225 . 225 225 225 225 195 185 129 141 81 . 141 141 211 218 281 281 Shots Fired 2437 | 26 92 36 160 45 . 16 11 147 82 162 38 154 18 48 31 . 8 104 115 15 . 6 8 79 45 46 126 118 32 13 . 51 42 137 25 167 234 Gun 1207 | 26 16 . 27 19 . 4 5 57 81 155 38 136 18 48 24 . 6 87 115 15 . 6 6 75 33 45 119 46 . . . . . . . . . Cannon 1100 | . 76 36 125 21 . 6 4 81 . . . . . . . . . 17 . . . . 2 . 2 . 2 72 29 11 . 40 42 135 25 166 208 Launcher 127 | . . . 8 5 . 6 2 9 1 7 . 18 . . 7 . 2 . . . . . . 4 10 1 5 . 3 2 . 11 . 2 . 1 23 Special 3 | . . . . . . . . . . . . . . . . . . . . . . . . . . . . . . . . . . . . . 3 Kinetic 853 | . 76 36 119 19 . 2 4 81 . . . . . . . . . . . . . . . . . . 55 118 20 . . 17 29 37 10 103 127 Thermal 1335 | 26 16 . 33 21 . 8 5 57 81 155 38 136 18 48 24 . 6 104 115 15 . 6 8 75 35 38 56 . . . . 9 13 81 15 31 62 Explosive 108 | . . . 8 5 . 6 2 9 1 7 . 18 . . 7 . 2 . . . . . . 4 10 1 5 . 3 2 . 11 . 2 . 1 4 Electromagnetic 121 | . . . . . . . . . . . . . . . . . . . . . . . . . . . . . 9 11 . 14 . 17 . 32 38 Entropic 17 | . . . . . . . . . . . . . . . . . . . . . . . . . . 7 10 . . . . . . . . . . Robot Hit Streak 30 | 6 7 6 20 25 . 12 12 13 16 12 17 15 5 16 11 . 4 22 30 7 . 5 6 15 20 10 28 19 29 15 . 13 20 27 4 14 23 Robot Miss Streak 8 | 2 4 2 2 2 . 1 2 5 2 8 4 3 5 4 2 . 2 3 2 1 . 1 . 3 2 2 2 1 1 1 . 3 1 3 2 3 3 Penetration Max 1 | . . . . . . . . . . . . . . . . . . . . . . . . . . 1 . 1 . . . . . 1 . 1 . Secondary Targets 25 | . . . . . . . . . . 3 . 2 . 2 2 . . 2 6 . . . . 3 . 1 4 . . . . . . . . . . Max Gunslinging Chain 2 | . . . . . . . . . . 1 . 1 . 1 1 . . 1 2 . . . . 1 . 1 1 . . . . . . . . . . Shots Hit Robots 1745 | 16 55 22 115 26 4 13 8 79 55 111 28 119 13 44 23 2 26 67 89 14 13 7 4 55 28 42 94 73 22 11 6 27 27 74 10 106 217 Core Hits 1097 | 7 27 11 58 16 . 18 7 44 22 61 19 112 9 32 22 . 11 32 55 5 4 3 1 35 32 26 53 41 10 6 . 36 15 44 4 51 168 Critical Kills 4 | . . . . . . . . . . . . . . . . . . . . . . . . . . . 1 . . . . . . . 1 . 2 Critical Parts Destroyed 4 | . . . . . . . . . . . . . . . . . . . . . . . . . . 2 2 . . . . . . . . . . Critical Strikes 126 | 2 5 1 3 . . 1 1 1 9 8 . 3 . 1 . . . 8 8 2 . . . 9 2 5 5 10 3 . . 2 4 4 5 6 18 Burn 62 | 2 3 . 1 . . 1 1 . 9 8 . 3 . . . . . 8 8 2 . . . 9 2 3 2 . . . . . . . . . . Meltdown 3 | . . . . . . . . . . . . . . . . . . . . . . . . . . . . . . . . . . . 1 . 2 Destroy 2 | . . . . . . . . . . . . . . . . . . . . . . . . . . . 2 . . . . . . . . . . Blast 43 | . 2 1 2 . . . . 1 . . . . . . . . . . . . . . . . . . . 10 2 . . 2 4 4 4 6 5 Corrupt 2 | . . . . . . . . . . . . . . . . . . . . . . . . . . . . . 1 . . . . . . . 1 Sever 1 | . . . . . . . . . . . . . . 1 . . . . . . . . . . . . . . . . . . . . . . . Impale 10 | . . . . . . . . . . . . . . . . . . . . . . . . . . . . . . . . . . . . . 10 Detonate 3 | . . . . . . . . . . . . . . . . . . . . . . . . . . 2 1 . . . . . . . . . . Melee Attacks 184 | . . . 2 . 4 . . 9 . 7 3 10 1 18 1 3 24 3 3 1 17 7 1 . . 9 . . . . 6 . . . . . 55 Impact 11 | . . . 2 . . . . 9 . . . . . . . . . . . . . . . . . . . . . . . . . . . . . Slashing 75 | . . . . . . . . . . 7 3 10 1 18 1 1 3 2 3 . 15 7 1 . . . . . . . 3 . . . . . . Piercing 55 | . . . . . . . . . . . . . . . . . . . . . . . . . . . . . . . . . . . . . 55 Sneak Attacks 61 | . . . . . 4 . . . . . . 3 . 3 1 2 21 1 . 1 12 . . . . 9 . . . . 3 . . . . . 1 Combat Hostiles . | . . . . . . . . . . . . . . . . . . . . . . . . . . . . . . . . . . . . . . Follow-up Attacks . | . . . . . . . . . . . . . . . . . . . . . . . . . . . . . . . . . . . . . . Damage Inflicted 68465 | 188 981 436 2752 786 . 883 255 2144 968 2852 583 4335 350 1072 1184 . 492 1212 1810 297 1110 239 87 2027 1512 1822 3503 3249 1053 686 236 2630 980 3892 424 5392 16043 Guns 18859 | 188 159 . 378 197 . 66 70 673 953 2282 583 2478 322 881 404 . 87 1192 1707 297 . 127 87 1093 582 885 2145 1023 . . . . . . . . . Cannons 23363 | . 811 406 1586 298 . 109 48 906 . . . . . . . . . . . . . . . . . . 76 1336 720 334 . 686 967 3268 424 4484 6904 Explosions 19411 | . . . 767 291 . 683 137 565 . 562 . 1613 . . 710 . 389 . . . . . . 934 913 937 1282 890 333 352 . 1944 . 498 . 814 4797 Melee 6235 | . . . . . . . . . . . . 204 . 191 70 . . . . . 1110 99 . . . . . . . . 236 . . . . . 4325 Ramming 597 | . 11 30 21 . . 25 . . 15 8 . 40 28 . . . 16 20 103 . . 13 . . 17 . . . . . . . 13 126 . 94 17 Kinetic 16401 | . 811 406 1478 197 . 47 48 906 . . . . . . . . . . . . . . . . . . 959 2359 381 . . 254 906 1103 207 2866 3473 Thermal 25334 | 188 159 . 486 355 . 274 70 673 953 2282 583 2478 322 881 404 . 87 1192 1707 297 . 127 87 1093 582 1034 1168 890 . . . . 61 1655 217 893 4136 Explosive 13884 | . . . 767 234 . 537 137 565 . 562 . 1613 . . 710 . 389 . . . . . . 934 913 501 1082 . 333 352 . 1944 . 498 . 664 1149 Electromagnetic 5433 | . . . . . . . . . . . . . . . . . . . . . . . . . . . . . 339 334 . 432 . 510 . 875 2943 Impact . | . . . . . . . . . . . . . . . . . . . . . . . . . . . . . . . . . . . . . . Slashing 1910 | . . . . . . . . . . . . 204 . 191 70 . . . . . 1110 99 . . . . . . . . 236 . . . . . . Piercing 4325 | . . . . . . . . . . . . . . . . . . . . . . . . . . . . . . . . . . . . . 4325 Entropic 581 | . . . . . . . . . . . . . . . . . . . . . . . . . . 287 294 . . . . . . . . . . Highest Corruption 33 | . . . . . . . . 3 3 10 10 10 . . . 1 . 2 2 6 6 2 . . 1 . . 4 . . . . . 4 2 14 33 Average Corruption 6 | . . . . . . . . 1 3 6 10 10 . . . 1 . 1 2 3 5 1 . . 1 . . 2 . . . . . 2 1 9 23 Corruption Purged 25 | . . . . . . . . . . . . . . . . . . . . . 6 . . . 1 . . 4 . . . . . . . 14 . Corruption Blocked . | . . . . . . . . . . . . . . . . . . . . . . . . . . . . . . . . . . . . . . Effects 383 | . . . . . . . . 12 19 43 18 59 . . . . . 6 22 7 10 . . . 1 . . 3 . . . . . 41 14 48 80 Message Errors 80 | . . . . . . . . 1 1 10 7 12 . . . . . 1 4 2 4 . . . . . . 1 . . . . . 11 2 10 14 Matter Fused 90 | . . . . . . . . 2 5 7 4 15 . . . . . 1 5 1 3 . . . . . . 1 . . . . . 12 4 15 15 Heat Flow Errors 45 | . . . . . . . . 3 3 5 2 7 . . . . . 1 2 1 . . . . . . . . . . . . . 6 2 4 9 Energy Discharges 51 | . . . . . . . . 2 5 6 1 6 . . . . . . 2 1 1 . . . . . . . . . . . . 6 2 11 8 Parts Rejected 5 | . . . . . . . . . . . . 2 . . . . . . . . . . . . . . . . . . . . . . . . 3 Parts Fused 2 | . . . . . . . . . . . . . . . . . . . . . . . . . . . . . . . . . . . . . 2 Data Loss (minor) 44 | . . . . . . . . 2 1 10 3 9 . . . . . 1 5 . 1 . . . . . . . . . . . . 3 1 1 7 Data Loss (major) 18 | . . . . . . . . 1 2 1 . 2 . . . . . 2 2 . . . . . . . . . . . . . . 2 . 3 3 Misfires 21 | . . . . . . . . . 1 4 . 2 . . . . . . 2 2 . . . . 1 . . 1 . . . . . . 2 1 5 Alerts 5 | . . . . . . . . . . . . 2 . . . . . . . . 1 . . . . . . . . . . . . . 1 . 1 Misdirections 1 | . . . . . . . . . . . . . . . . . . . . . . . . . . . . . . . . . . . . 1 . Weapon Failures 21 | . . . . . . . . 1 1 . 1 2 . . . . . . . . . . . . . . . . . . . . . 1 . 2 13 Overload Shots . | . . . . . . . . . . . . . . . . . . . . . . . . . . . . . . . . . . . . . . Overflow Damage 2401 | . . . 26 5 . . . . . . . 44 . . 81 . . . 12 . 463 6 . 10 14 127 75 122 56 67 177 27 9 138 11 269 662 Projectiles 545 | . . . 25 . . . . . . . . . . . . . . . . . . . . . . . 30 37 56 36 . . 9 71 11 170 100 Explosions 695 | . . . 1 5 . . . . . . . 30 . . 81 . . . . . . . . 10 . 127 45 85 . 31 . 27 . 57 . 79 117 Melee 1161 | . . . . . . . . . . . . 14 . . . . . . 12 . 463 6 . . 14 . . . . . 177 . . 10 . 20 445 Knockbacks 114 | . 6 6 9 . . 1 . 17 1 . . . 1 . . . . 1 . . . . . . . . 1 11 2 . . . 8 10 1 25 14 Impact 3 | . . . . . . . . . 1 . . . 1 . . . . 1 . . . . . . . . . . . . . . . . . . . Kinetic 103 | . 6 6 8 . . 1 . 15 . . . . . . . . . . . . . . . . . . 1 11 2 . . . 7 10 1 22 13 Secondary 8 | . . . 1 . . . . 2 . . . . . . . . . . . . . . . . . . . . . . . . 1 . . 3 1 Self-Inflicted Damage 1009 | . . . 24 . . 13 22 20 . 87 . 135 . . 107 . . . . . . . . . 40 . 30 85 . . . . . . . 69 377 Shots 50 | . . . 1 . . 1 2 1 . 4 . 5 . . 4 . . . . . . . . . 1 . 1 1 . . . . . . . 2 27 Rammed 39 | . 5 3 3 . . 3 . . 2 . . 5 1 . . . 2 2 5 . . 1 . . 1 . . . . . . . 1 4 . 1 . Targets Rammed 47 | . 5 5 3 . . 3 . . 2 1 . 5 2 . . . 2 2 5 . . 1 . . 1 . . . . . . . 1 5 . 3 1 Kicked . | . . . . . . . . . . . . . . . . . . . . . . . . . . . . . . . . . . . . . . Crushed 8 | . . 2 . . . . . . . 1 . . 1 . . . . . . . . . . . . . . . . . . . . 1 . 2 1 Highest Temperature 527 | 90 66 24 165 248 . 234 32 375 190 318 264 297 208 366 202 . 117 140 364 294 . 120 141 327 180 60 110 8 252 159 . 270 174 348 294 527 236 Average Temperature 78 | 37 20 13 38 68 . 83 13 71 31 65 76 99 84 140 70 . 52 21 112 112 . 69 60 136 72 22 43 8 90 73 . 85 66 89 91 107 84 Received Heat Transfer 4307 | . 144 93 348 65 . 36 36 423 135 202 90 648 36 90 24 . 6 198 383 . . 12 . 279 49 4 217 99 12 5 . 73 32 12 . 28 528 Effects 21 | . . . . 3 . . . 1 . . . 1 . 2 . . . . 1 2 . . . . . . . . . . . 1 . 4 2 4 . Shutdowns 1 | . . . . . . . . 1 . . . . . . . . . . . . . . . . . . . . . . . . . . . . . Energy Bleed 6 | . . . . . . . . . . . . 1 . . . . . . 1 1 . . . . . . . . . . . 1 . . 2 . . Interference 10 | . . . . 3 . . . . . . . . . 2 . . . . . 1 . . . . . . . . . . . . . 4 . . . Damage (minor) 1 | . . . . . . . . . . . . . . . . . . . . . . . . . . . . . . . . . . . . 1 . Damage (major) 3 | . . . . . . . . . . . . . . . . . . . . . . . . . . . . . . . . . . . . 3 . Siege Activations 24 | . . . . . . . . . . . . . . . . . . . . . . . . 1 3 . 2 1 . 1 . 1 . 7 . 2 6 Total Turns 819 | . . . . . . . . . . . . . . . . . . . . . . . . 21 110 . 41 70 . 28 . 17 . 265 . 28 239 Longest Duration 121 | . . . . . . . . . . . . . . . . . . . . . . . . 21 70 . 36 70 . 28 . 17 . 121 . 15 79 Martial Activations . | . . . . . . . . . . . . . . . . . . . . . . . . . . . . . . . . . . . . . . Shielding Activations . | . . . . . . . . . . . . . . . . . . . . . . . . . . . . . . . . . . . . . . Robots Disrupted 3 | . . . . . . . . . . . . . . . . . . . . . . . . . . . . . . . . . . . . . 3 Combat Hostiles 3 | . . . . . . . . . . . . . . . . . . . . . . . . . . . . . . . . . . . . . 3 Robots Corrupted 30 | . . . . . . . . . . . . . . . . . . . . . . . . . 1 . . . 2 2 . 2 . 3 . 4 16 Combat Hostiles 27 | . . . . . . . . . . . . . . . . . . . . . . . . . . . . . 2 2 . 2 . 3 . 3 15 Parts Fried 49 | . . . . . . . . . . . . . . . . . . . . . . . . . 2 . . . 1 1 . 3 . 2 . 13 27 Impact Corruptions 8 | . . . . . . . . . . . . . . . . . . . 1 . . . . . 3 . . . . . . . . 1 . 3 . Robots Melted 16 | . . . . . . 1 . . 3 2 . 1 1 . . . . 1 2 . . . . 1 . . 1 . . . . . . . 1 . 2 Combat Hostiles 15 | . . . . . . 1 . . 3 2 . 1 1 . . . . 1 2 . . . . 1 . . 1 . . . . . . . . . 2 Parts Melted 124 | 1 2 . . 1 . . . 6 10 20 3 11 7 4 1 . . 10 19 . . 1 . 4 4 10 7 . . . . . . 1 . 1 1 Heat Transferred 44191 | 644 679 . 962 568 . 483 222 1258 2701 5132 1296 5763 685 1981 923 . 199 3071 4319 594 . 128 148 2590 1073 1485 2050 600 . . . . 74 1369 185 742 2267 Parts Sabotaged . | . . . . . . . . . . . . . . . . . . . . . . . . . . . . . . . . . . . . . . Parts Stolen . | . . . . . . . . . . . . . . . . . . . . . . . . . . . . . . . . . . . . . . Parts Stripped . | . . . . . . . . . . . . . . . . . . . . . . . . . . . . . . . . . . . . . . Power Chain Reactions 9 | . . . . . . . . . . . . . . . . . . . . . . . . . . . . . . . . . . . . 2 7 Alert | -11 -10 -10 -9 -9 -9 -8 -8 -8 -8 -8 -8 -8 -7 -7 -7 -7 -6 -6 -6 -6 -6 -6 -5 -5 -5 -5 -4 -4 -4 -4 -4 -3 -3 -3 -2 -1 -1 ------- Run | Yrd Mat Min Mat Min Exi Min Mat Gar Mat Gar Mat Sto Fac Low Low Zio Pro Fac Ext Cet Arc Hub Fac Upp Upp War Pro Fac Upp Upp Zhi Pro Res Tes Res Acc Com Maximum Alert Level 4 | . 1 . 2 1 . . . 2 1 4 2 2 1 . . . . 2 2 1 1 3 2 . . . . 3 . . . . . 1 . 2 4 Low Security (%) 52 | 100 97 100 33 98 . 100 100 18 43 21 . . 96 . . . . 11 60 2 46 10 . . . . . 51 . . . . 100 79 100 52 . Level 1 21 | . 2 . 33 1 . . . 44 56 14 . 50 3 . . . . 22 34 97 53 15 75 . . . . 6 . . . . . 20 . 17 6 Level 2 20 | . . . 33 . . . . 36 . 14 100 49 . . . . . 66 5 . . 56 24 . . . . 34 . . . . . . . 30 37 Level 3 5 | . . . . . . . . . . 39 . . . . . . . . . . . 17 . . . . . 7 . . . . . . . . 50 Level 4 . | . . . . . . . . . . 9 . . . . . . . . . . . . . . . . . . . . . . . . . . 5 Level 5 . | . . . . . . . . . . . . . . . . . . . . . . . . . . . . . . . . . . . . . . High Security . | . . . . . . . . . . . . . . . . . . . . . . . . . . . . . . . . . . . . . . Max Security . | . . . . . . . . . . . . . . . . . . . . . . . . . . . . . . . . . . . . . . Peak Influence 1203 | 10 209 70 634 208 . 140 71 570 277 1203 586 699 221 . . . . 566 467 369 276 768 456 . . . . 860 . . . . 76 275 195 581 1070 Initial 586 | . . 36 17 208 . . 1 . 277 39 586 227 170 . . . . 202 221 209 114 47 306 . . . . 105 . . . . 17 18 150 . 336 Average 255 | 1 99 15 324 39 . 39 19 327 179 653 532 398 58 . . . . 413 151 288 209 509 352 . . . . 289 . . . . 13 155 56 248 662 Influence Increases 18584 | 30 531 230 1312 87 . 226 96 680 347 1204 183 1089 335 220 220 . 769 882 985 360 292 1239 218 255 310 165 485 1266 195 165 . 430 262 899 109 976 1532 Destroy 0b10 Robot/C 10220 | . 360 180 700 40 . 140 60 420 240 700 140 660 140 160 200 . 440 500 480 160 80 440 . 240 260 160 360 360 160 140 . 360 80 460 40 540 820 Destroy 0b10 Robot/NC 610 | 30 20 10 60 5 . 15 5 . 15 . . 75 20 . . . 10 10 25 10 35 15 5 5 . 5 30 15 . . . . 20 30 5 55 80 Destroy Leader 1672 | . 74 40 182 . . 30 20 10 72 40 40 144 54 . 20 . 30 112 66 . . 136 2 10 50 . 20 82 20 10 . 40 16 84 10 124 134 Allied During Kill 1725 | . . . . . . . . 1 . 6 . 3 84 . . . 289 178 313 170 115 566 . . . . . . . . . . . . . . . Trap Triggered on 0b10 120 | . . . 30 . . . . . . . . . . . . . . 10 . . . . . . . . . . . . . . . . . . 80 Successful Hack 514 | . 16 . 44 . . . . 24 9 . . 29 36 . . . . 20 42 . . 21 7 . . . . 73 . . . . 77 68 . 44 4 Select Force Hacks 120 | . 30 . 90 . . . . . . . . . . . . . . . . . . . . . . . . . . . . . . . . . . Disable Machine 825 | . . . 45 15 . 15 . 30 . 30 . 75 . . . . . 15 15 15 60 15 . . . . . 285 . . . . 30 105 15 15 45 Anti-Garrison Action 950 | . . . . . . . . 150 . 400 . . . . . . . . . . . . 200 . . . . 200 . . . . . . . . . Destroy Structure 1228 | . 1 . 26 27 . 26 11 45 11 28 3 88 1 . . . . 7 14 5 2 31 4 . . . . 236 . . . . 24 152 39 198 249 Partial Spotted 45 | . . . . . . . . . . . . . . . . . . . . . . 15 . . . . . 15 . . . . 15 . . . . Lose Combat Pursuer 555 | . 30 . 135 . . . . . . . . 15 . 60 . . . 30 30 . . . . . . . 75 . 15 15 . 30 . . . . 120 Influence Decreases 17360 | 30 438 278 821 623 . 222 100 110 857 61 847 1252 710 221 220 . 447 750 1064 448 443 749 534 524 351 54 428 901 705 188 . 404 254 666 376 450 834 Entered New Map 3800 | . . 57 28 328 . . 3 . 293 21 617 312 206 1 . . . 120 233 166 173 89 320 115 9 . 111 63 198 5 . . 9 16 117 . 190 Time Decay 10932 | 30 428 221 633 285 . 222 97 . 404 . 230 580 415 220 220 . 267 510 432 222 230 310 214 409 342 54 287 518 507 183 . 404 235 640 259 450 474 Lost Part 460 | . 10 . 10 10 . . . 90 10 40 . 60 . . . . . . 30 . . . . . . . 30 10 . . . . 10 . . . 150 Lost Ally 790 | . . . . . . . . 20 . . . . 89 . . . 180 120 41 60 40 200 . . . . . 10 . . . . . 10 . . 20 Purge Threat 1378 | . . . 150 . . . . . 150 . . 300 . . . . . . 328 . . 150 . . . . . 300 . . . . . . . . . Squads Dispatched 85 | . 4 . 5 . . . 2 . 1 . 3 6 6 . . . 2 9 3 . . 6 2 . . . . 6 . . . . 4 9 2 9 6 Investigation 21 | . 2 . 3 . . . 1 . 1 . . 1 . . . . 1 2 . . . 2 1 . . . . 4 . . . . 2 . . 1 . Extermination 21 | . . . . . . . . . . . . . 3 . . . . 2 . . . 1 1 . . . . 2 . . . . . 5 . 5 2 Reinforcement 28 | . 2 . 1 . . . 1 . . . 2 3 3 . . . 1 2 3 . . . . . . . . . . . . . 2 3 2 2 1 Assault 7 | . . . 1 . . . . . . . 1 1 . . . . . . . . . . . . . . . . . . . . . 1 . . 3 Garrison 8 | . . . . . . . . . . . . 1 . . . . . 3 . . . 3 . . . . . . . . . . . . . 1 . Intercept . | . . . . . . . . . . . . . . . . . . . . . . . . . . . . . . . . . . . . . . Searches Triggered . | . . . . . . . . . . . . . . . . . . . . . . . . . . . . . . . . . . . . . . Construction Impeded 3 | . . . . . . . . . . . . . . . . . 1 . 1 . . . . . . . . . . . . . 1 . . . . Haulers Reinforced 1 | . . . . . . . . . . . . . 1 . . . . . . . . . . . . . . . . . . . . . . . . Active Scanning Responses . | . . . . . . . . . . . . . . . . . . . . . . . . . . . . . . . . . . . . . . Cargo Convoy Interrupts . | . . . . . . . . . . . . . . . . . . . . . . . . . . . . . . . . . . . . . . Stealth | -11 -10 -10 -9 -9 -9 -8 -8 -8 -8 -8 -8 -8 -7 -7 -7 -7 -6 -6 -6 -6 -6 -6 -5 -5 -5 -5 -4 -4 -4 -4 -4 -3 -3 -3 -2 -1 -1 --------- Run | Yrd Mat Min Mat Min Exi Min Mat Gar Mat Gar Mat Sto Fac Low Low Zio Pro Fac Ext Cet Arc Hub Fac Upp Upp War Pro Fac Upp Upp Zhi Pro Res Tes Res Acc Com Distress Signals 46 | . 4 . 2 . . . 1 . . . . 4 1 . . . 1 2 3 2 . 1 . . . . . . . . . . 8 1 3 1 12 Communications Jammed 30 | . . . . . . . . . . . . . . . . . . . . . . . . . . . . . . . . . . 10 17 . 3 Distress Signals 30 | . . . . . . . . . . . . . . . . . . . . . . . . . . . . . . . . . . 10 17 . 3 Times Spotted 684 | . 38 9 50 12 . 7 8 24 17 36 13 40 22 10 10 . 21 30 33 10 12 19 2 12 10 26 25 18 6 7 . 15 17 31 11 31 52 Peak Tracking Total 15 | . 4 3 6 2 . 3 4 4 3 7 5 6 4 9 4 . 5 6 4 5 1 5 1 5 4 12 15 4 3 3 . 5 5 3 2 5 6 Tactical Retreats 28 | . 1 . 6 1 . . . . . . . 1 . 2 . . . 2 2 . . . . . . . 2 . 1 1 . 2 . . . . 7 Traps | -11 -10 -10 -9 -9 -9 -8 -8 -8 -8 -8 -8 -8 -7 -7 -7 -7 -6 -6 -6 -6 -6 -6 -5 -5 -5 -5 -4 -4 -4 -4 -4 -3 -3 -3 -2 -1 -1 ------- Run | Yrd Mat Min Mat Min Exi Min Mat Gar Mat Gar Mat Sto Fac Low Low Zio Pro Fac Ext Cet Arc Hub Fac Upp Upp War Pro Fac Upp Upp Zhi Pro Res Tes Res Acc Com Traps Triggered 24 | . 1 . . . . . . . . 11 . 1 1 . . . . . 7 . . . . . . . . . . . . . 1 1 . 1 . Indirectly . | . . . . . . . . . . . . . . . . . . . . . . . . . . . . . . . . . . . . . . Trap Hack Attempts 22 | . . . . . . . . . . . . . . . . . . 18 . . . . 4 . . . . . . . . . . . . . . Triggered . | . . . . . . . . . . . . . . . . . . . . . . . . . . . . . . . . . . . . . . Disarmed 1 | . . . . . . . . . . . . . . . . . . 1 . . . . . . . . . . . . . . . . . . . Reprogrammed 6 | . . . . . . . . . . . . . . . . . . 5 . . . . 1 . . . . . . . . . . . . . . Reused 11 | . . . 3 . . . . . . . . . . . . . . . . . . . . . . . . . . . . . . . . . 8 Traps Extracted . | . . . . . . . . . . . . . . . . . . . . . . . . . . . . . . . . . . . . . . Installed 11 | . . . 3 . . . . . . . . . . . . . . . . . . . . . . . . . . . . . . . . . 8 Triggered 12 | . . . 3 . . . . . . . . . . . . . . 1 . . . . . . . . . . . . . . . . . . 8 Most Traps Carried 8 | . . 3 3 . . . . . . . . . . . . . . . . . . . . . . . 8 8 8 8 8 8 8 8 8 8 8 Machines | -11 -10 -10 -9 -9 -9 -8 -8 -8 -8 -8 -8 -8 -7 -7 -7 -7 -6 -6 -6 -6 -6 -6 -5 -5 -5 -5 -4 -4 -4 -4 -4 -3 -3 -3 -2 -1 -1 ---------- Run | Yrd Mat Min Mat Min Exi Min Mat Gar Mat Gar Mat Sto Fac Low Low Zio Pro Fac Ext Cet Arc Hub Fac Upp Upp War Pro Fac Upp Upp Zhi Pro Res Tes Res Acc Com Machines Disabled 74 | . 1 . 3 1 . 1 . 5 . 8 . 5 . 2 . . 3 1 2 1 4 1 . . . 1 2 19 . . . . 2 7 1 1 3 Max in Single Turn 6 | . 1 . 1 1 . 1 . 1 . 1 . 1 . 1 . . 1 . 1 1 . 1 . . . 1 1 6 . . . . 1 2 1 1 1 Garrison Access 6 | . . . . . . . . . . . . 1 . . . . . 1 . . . 1 1 . . . . 1 . . . . . . 1 . . Garrison Relay 7 | . . . . . . . . 3 . 4 . . . . . . . . . . . . . . . . . . . . . . . . . . . Phase Generator 1 | . . . . . . . . . . 1 . . . . . . . . . . . . . . . . . . . . . . . . . . . Network Hub 1 | . . . . . . . . . . . . . . . . . . . . . . 1 . . . . . . . . . . . . . . . Machines Repaired . | . . . . . . . . . . . . . . . . . . . . . . . . . . . . . . . . . . . . . . Machines Dismantled 6 | . . . . . . . . . . 1 . 1 . . . . . . 1 1 . 1 . . . 1 . . . . . . . . . . . Machines Sabotaged . | . . . . . . . . . . . . . . . . . . . . . . . . . . . . . . . . . . . . . . Overloaded Fab Kills . | . . . . . . . . . . . . . . . . . . . . . . . . . . . . . . . . . . . . . . Hacking | -11 -10 -10 -9 -9 -9 -8 -8 -8 -8 -8 -8 -8 -7 -7 -7 -7 -6 -6 -6 -6 -6 -6 -5 -5 -5 -5 -4 -4 -4 -4 -4 -3 -3 -3 -2 -1 -1 --------- Run | Yrd Mat Min Mat Min Exi Min Mat Gar Mat Gar Mat Sto Fac Low Low Zio Pro Fac Ext Cet Arc Hub Fac Upp Upp War Pro Fac Upp Upp Zhi Pro Res Tes Res Acc Com Machines Accessed 130 | . 4 . 12 . 1 . 3 3 7 2 . 13 3 2 . 1 3 5 13 1 . 5 3 1 1 1 1 13 . . 4 . 10 8 . 9 1 Terminals 79 | . 2 . 8 . . . 1 3 3 2 . 11 3 . . . 1 1 12 1 . 4 1 . . . 1 6 . . . . 6 4 . 8 1 Fabricators 4 | . . . . . . . . . . . . . . . . . 1 1 . . . . . . . . . 1 . . . . 1 . . . . Repair Stations 12 | . 1 . 1 . . . 1 . 1 . . 1 . . . . . 1 . . . . . . . . . 2 . . . . 1 2 . 1 . Recycling Units 7 | . 1 . 2 . . . . . . . . . . . . . 1 . 1 . . . 1 . . . . 1 . . . . . . . . . Scanalyzers 8 | . . . 1 . . . . . 2 . . . . . . . . . . . . . . . . . . 2 . . . . 2 1 . . . Garrison Access 9 | . . . . . . . 1 . 1 . . 1 . . . . . 2 . . . 1 1 . . . . 1 . . . . . 1 . . . Total Hacks 382 | . 14 . 32 . 1 . 8 5 27 3 . 37 7 6 . 2 5 14 37 1 . 13 7 1 1 1 7 54 . . 17 . 37 26 . 18 1 Successful 198 | . 6 . 21 . 1 . 3 3 17 . . 19 2 6 . 2 4 5 19 . . 4 3 1 1 1 7 23 . . 17 . 11 14 . 7 1 Failed 181 | . 7 . 10 . . . 5 2 10 3 . 18 5 . . . 1 9 17 1 . 9 4 . . . . 31 . . . . 26 12 . 11 . Catastrophic 37 | . 1 . 3 . . . . 1 2 1 . 7 . . . . . 2 1 1 . 3 . . . . . 3 . . . . 8 2 . 2 . Database Lockouts 3 | . 1 . 1 . . . . . . . . . . . . . . . 1 . . . . . . . . . . . . . . . . . . Manual 122 | . 9 . 24 . . . 4 3 4 . . 10 1 . . . 2 4 17 1 . 4 4 . . . . 24 . . . . 4 1 . 6 . Terminals 206 | . 8 . 22 . . . 2 5 6 3 . 27 7 . . . 1 3 34 1 . 10 2 . . . 7 23 . . . . 19 10 . 15 1 Fabricators 11 | . . . . . . . . . . . . . . . . . 2 4 . . . . . . . . . 3 . . . . 2 . . . . Repair Stations 49 | . 3 . 2 . . . 3 . 5 . . 7 . . . . . 1 . . . . . . . . . 11 . . . . 4 10 . 3 . Recycling Units 17 | . 3 . 4 . . . . . . . . . . . . . 2 . 3 . . . 3 . . . . 2 . . . . . . . . . Scanalyzers 46 | . . . 4 . . . . . 13 . . . . . . . . . . . . . . . . . . 13 . . . . 12 4 . . . Garrison Access 24 | . . . . . . . 3 . 3 . . 3 . . . . . 6 . . . 3 2 . . . . 2 . . . . . 2 . . . Terminal Hacks 97 | . 2 . 5 . 1 . . 2 2 . . 12 2 6 . 2 1 . 15 . . 3 1 1 1 1 7 4 . . 17 . 2 3 . 6 1 Record 18 | . . . . . 1 . . . . . . . . 5 . . . . . . . . . . . . 7 . . . 5 . . . . . . Part Schematic 6 | . . . . . . . . . . . . . . . . 2 . . . . . . . . . . . . . . 4 . . . . . . Robot Schematic 1 | . . . . . . . . . . . . 1 . . . . . . . . . . . . . . . . . . . . . . . . . Robot Analysis 8 | . 1 . 1 . . . . . . . . 1 . . . . . . 1 . . . . . . . . . . . 4 . . . . . . Prototype ID Bank 6 | . . . . . . . . . . . . 1 . . . . . . 1 . . . . . . . . . . . 4 . . . . . . Open Door 17 | . . . . . . . . 1 . . . 3 . 1 . . 1 . 4 . . . . 1 1 1 . . . . . . . . . 3 1 Branch Access Points 5 | . . . 1 . . . . . . . . . 1 . . . . . . . . . 1 . . . . . . . . . 1 . . 1 . Emergency Access Points 1 | . . . . . . . . . . . . . . . . . . . . . . . . . . . . . . . . . . . . 1 . Terminal Index 1 | . . . . . . . . . . . . . . . . . . . . . . . . . . . . . . . . . . . . 1 . Garrison Index 1 | . . . . . . . . . . . . . . . . . . . . . . 1 . . . . . . . . . . . . . . . Unreport Threat 11 | . . . 1 . . . . . 1 . . 2 . . . . . . 4 . . 1 . . . . . 2 . . . . . . . . . Locate Traps 10 | . . . 1 . . . . . . . . 3 1 . . . . . 3 . . . . . . . . 1 . . . . 1 . . . . Zone Layout 10 | . 1 . 1 . . . . . 1 . . 1 . . . . . . 2 . . 1 . . . . . 1 . . . . . 2 . . . Garrison Registry 1 | . . . . . . . . 1 . . . . . . . . . . . . . . . . . . . . . . . . . . . . . Protovariant Controls 1 | . . . . . . . . . . . . . . . . . . . . . . . . . . . . . . . . . . 1 . . . Fabricator Hacks 6 | . . . . . . . . . . . . . . . . . 2 1 . . . . . . . . . 2 . . . . 1 . . . . Network Status 2 | . . . . . . . . . . . . . . . . . . 1 . . . . . . . . . . . . . . 1 . . . . Load Schematic 2 | . . . . . . . . . . . . . . . . . 1 . . . . . . . . . . 1 . . . . . . . . . Build 2 | . . . . . . . . . . . . . . . . . 1 . . . . . . . . . . 1 . . . . . . . . . Repair Station Hacks 24 | . 1 . 2 . . . 2 . 4 . . 5 . . . . . . . . . . . . . . . 2 . . . . 2 6 . . . Scan Component 13 | . 1 . 1 . . . 1 . 2 . . 3 . . . . . . . . . . . . . . . 1 . . . . 1 3 . . . Repair 11 | . . . 1 . . . 1 . 2 . . 2 . . . . . . . . . . . . . . . 1 . . . . 1 3 . . . Recycling Unit Hacks 4 | . 1 . . . . . . . . . . . . . . . . . 1 . . . 1 . . . . 1 . . . . . . . . . Retrieve Components 4 | . 1 . . . . . . . . . . . . . . . . . 1 . . . 1 . . . . 1 . . . . . . . . . Scanalyzer 33 | . . . 3 . . . . . 10 . . . . . . . . . . . . . . . . . . 10 . . . . 6 4 . . . Insert Component 10 | . . . 1 . . . . . 4 . . . . . . . . . . . . . . . . . . 2 . . . . 2 1 . . . Analyze 10 | . . . 1 . . . . . 4 . . . . . . . . . . . . . . . . . . 4 . . . . . 1 . . . Retrieve Study 13 | . . . 1 . . . . . 2 . . . . . . . . . . . . . . . . . . 4 . . . . 4 2 . . . Garrison Access Hacks 5 | . . . . . . . 1 . 1 . . 1 . . . . . 1 . . . 1 . . . . . . . . . . . . . . . Unlock Access 2 | . . . . . . . 1 . 1 . . . . . . . . . . . . . . . . . . . . . . . . . . . . Seal Access 3 | . . . . . . . . . . . . 1 . . . . . 1 . . . 1 . . . . . . . . . . . . . . . Unauthorized Hacks 29 | . 2 . 11 . . . . 1 . . . 1 . . . . 1 3 3 . . . 1 . . . . 4 . . . . . 1 . 1 . Terminals 17 | . 1 . 7 . . . . 1 . . . 1 . . . . . 1 3 . . . . . . . . 2 . . . . . 1 . . . Assimilate 2 | . . . . . . . . . . . . . . . . . . . . . . . . . . . . 1 . . . . . 1 . . . Botnet 7 | . . . 2 . . . . 1 . . . 1 . . . . . 1 1 . . . . . . . . 1 . . . . . . . . . Disrupt 2 | . . . . . . . . . . . . . . . . . . . 2 . . . . . . . . . . . . . . . . . . Skim 6 | . 1 . 5 . . . . . . . . . . . . . . . . . . . . . . . . . . . . . . . . . . Fabricators 2 | . . . . . . . . . . . . . . . . . . 2 . . . . . . . . . . . . . . . . . . . Liberate 1 | . . . . . . . . . . . . . . . . . . 1 . . . . . . . . . . . . . . . . . . . Haulers 1 | . . . . . . . . . . . . . . . . . . 1 . . . . . . . . . . . . . . . . . . . Repair Stations 1 | . . . . . . . . . . . . . . . . . . . . . . . . . . . . . . . . . . . . 1 . Patch 1 | . . . . . . . . . . . . . . . . . . . . . . . . . . . . . . . . . . . . 1 . Recycling Units 6 | . 1 . 3 . . . . . . . . . . . . . 1 . . . . . . . . . . 1 . . . . . . . . . Reject 3 | . . . 1 . . . . . . . . . . . . . 1 . . . . . . . . . . 1 . . . . . . . . . Tunnel 3 | . 1 . 2 . . . . . . . . . . . . . . . . . . . . . . . . . . . . . . . . . . Scanalyzers 1 | . . . 1 . . . . . . . . . . . . . . . . . . . . . . . . . . . . . . . . . . Extract 1 | . . . 1 . . . . . . . . . . . . . . . . . . . . . . . . . . . . . . . . . . Garrison Access 2 | . . . . . . . . . . . . . . . . . . . . . . . 1 . . . . 1 . . . . . . . . . Jam 2 | . . . . . . . . . . . . . . . . . . . . . . . 1 . . . . 1 . . . . . . . . . Data Cores Recovered 3 | . . . . . . . . . 2 . . . . . . . . . . . . . . . . . . 1 . . . . . . . . . Used . | . . . . . . . . . . . . . . . . . . . . . . . . . . . . . . . . . . . . . . Hacking Detections 98 | . 3 . 9 . . . 3 3 6 2 . 11 3 . . . 3 5 10 1 . 4 2 . . . . 11 . . . . 10 6 . 6 . Full Trace Events 11 | . . . . . . . 1 . 1 1 . . . . . . 1 2 . . . 2 . . . . . 3 . . . . . . . . . Feedback Events 1 | . . . . . . . 1 . . . . . . . . . . . . . . . . . . . . . . . . . . . . . . Corruption 1 | . . . . . . . 1 . . . . . . . . . . . . . . . . . . . . . . . . . . . . . . Feedback Blocked . | . . . . . . . . . . . . . . . . . . . . . . . . . . . . . . . . . . . . . . Robot Schematics Acquired 4 | . . . . . . . . . . . . 1 . . . 3 . . . . . . . . . . . . . . . . . . . . . Robots Built . | . . . . . . . . . . . . . . . . . . . . . . . . . . . . . . . . . . . . . . Authchips . | . . . . . . . . . . . . . . . . . . . . . . . . . . . . . . . . . . . . . . Time . | . . . . . . . . . . . . . . . . . . . . . . . . . . . . . . . . . . . . . . Total Robot Build Rating . | . . . . . . . . . . . . . . . . . . . . . . . . . . . . . . . . . . . . . . Part Schematics Acquired 35 | . . . 2 . . . . . 4 . . . . . . 17 . . . . . . . . . . . 2 . . 4 . . 6 . . . Parts Built 3 | . . . . . . . . . . . . . . . . . 2 . . . . . . . . . . 1 . . . . . . . . . Authchips . | . . . . . . . . . . . . . . . . . . . . . . . . . . . . . . . . . . . . . . Time 138 | . . . . . . . . . . . . . . . . . 36 . . . . . . . . . . 102 . . . . . . . . . Total Part Build Rating 14 | . . . . . . . . . . . . . . . . . 6 . . . . . . . . . . 8 . . . . . . . . . Part Studies Acquired 13 | . . . 1 . . . . . 2 . . . . . . . . . . . . . . . . . . 4 . . . . 4 2 . . . Parts Repaired 11 | . . . 1 . . . 1 . 2 . . 2 . . . . . . . . . . . . . . . 1 . . . . 1 3 . . . Time 504 | . . . 26 . . . 26 . 58 . . 102 . . . . . . . . . . . . . . . 54 . . . . 54 184 . . . Parts Recycled . | . . . . . . . . . . . . . . . . . . . . . . . . . . . . . . . . . . . . . . Recycled Matter . | . . . . . . . . . . . . . . . . . . . . . . . . . . . . . . . . . . . . . . Retrieved Matter . | . . . . . . . . . . . . . . . . . . . . . . . . . . . . . . . . . . . . . . Retrieved Components 16 | . 3 . . . . . . . . . . . . . . . . . 2 . . . 1 . . . . 10 . . . . . . . . . Parts Scanalyzed 8 | . . . 1 . . . . . 4 . . . . . . . . . . . . . . . . . . 2 . . . . . 1 . . . Part Schematics Acquired 8 | . . . 1 . . . . . 4 . . . . . . . . . . . . . . . . . . 2 . . . . . 1 . . . Parts Damaged . | . . . . . . . . . . . . . . . . . . . . . . . . . . . . . . . . . . . . . . Bothacking | -11 -10 -10 -9 -9 -9 -8 -8 -8 -8 -8 -8 -8 -7 -7 -7 -7 -6 -6 -6 -6 -6 -6 -5 -5 -5 -5 -4 -4 -4 -4 -4 -3 -3 -3 -2 -1 -1 ------------ Run | Yrd Mat Min Mat Min Exi Min Mat Gar Mat Gar Mat Sto Fac Low Low Zio Pro Fac Ext Cet Arc Hub Fac Upp Upp War Pro Fac Upp Upp Zhi Pro Res Tes Res Acc Com Used RIF Installer . | . . . . . . . . . . . . . . . . . . . . . . . . . . . . . . . . . . . . . . Robots Hacked 24 | . . . . . 4 . . . . . . . . . . 2 1 1 . 1 2 . . . . 9 . . . . 3 . . . . . 1 Non-combat 7 | . . . . . 3 . . . . . . . . . . . 1 1 . . 1 . . . . 1 . . . . . . . . . . . Combat 16 | . . . . . 1 . . . . . . . . . . 2 . . . 1 1 . . . . 8 . . . . 3 . . . . . . Robot Hacks Applied 23 | . . . . . 4 . . . . . . . . . . 2 1 1 . 1 2 . . . . 9 . . . . 3 . . . . . . parse_system 20 | . . . . . 4 . . . . . . . . . . 2 . . . 1 1 . . . . 9 . . . . 3 . . . . . . find_chute 1 | . . . . . . . . . . . . . . . . . . 1 . . . . . . . . . . . . . . . . . . . find_recycling 1 | . . . . . . . . . . . . . . . . . 1 . . . . . . . . . . . . . . . . . . . . check_alert 1 | . . . . . . . . . . . . . . . . . . . . . 1 . . . . . . . . . . . . . . . . Manual 1 | . . . . . . . . . . . . . . . . . . . . . . . . . . . . . . . . . . . . . 1 Relay Couplers Released 26 | . . . . . . . . 9 . 16 . . . . . . . . . . . . . . . . . . . . . . . . 1 . . Machine Destruction 26 | . . . . . . . . 9 . 16 . . . . . . . . . . . . . . . . . . . . . . . . 1 . . Fabnet Peak Effective % . | . . . . . . . . . . . . . . . . . . . . . . . . . . . . . . . . . . . . . . Robots Rewired 25 | . . . . . . . . . . 2 . . . . . . 11 . 11 . . . . . . . . . . . . . . . . . 1 Allies Hacked 2 | . . . . . . . . . . . . . 1 . . . . 1 . . . . . . . . . . . . . . . . . . . Hacks Repelled . | . . . . . . . . . . . . . . . . . . . . . . . . . . . . . . . . . . . . . . Allies | -11 -10 -10 -9 -9 -9 -8 -8 -8 -8 -8 -8 -8 -7 -7 -7 -7 -6 -6 -6 -6 -6 -6 -5 -5 -5 -5 -4 -4 -4 -4 -4 -3 -3 -3 -2 -1 -1 -------- Run | Yrd Mat Min Mat Min Exi Min Mat Gar Mat Gar Mat Sto Fac Low Low Zio Pro Fac Ext Cet Arc Hub Fac Upp Upp War Pro Fac Upp Upp Zhi Pro Res Tes Res Acc Com Total Allies 58 | . . . . . . . . 1 . 2 . 10 . . . 7 11 . 19 5 . . . . . . . 1 . . . . . 1 . . 1 Largest Group 18 | . . . . . . . . 1 . 2 . 10 10 . . 7 10 7 16 18 18 14 . . . . . 1 . . . . . 1 . . . Highest-Rated Group 1018 | . . . . . . . . 25 . 31 . 173 173 . . 177 251 219 637 1018 1018 780 . . . . . 10 . . . . . 10 . . . Highest-Rated Ally 159 | . . . . . . . . 25 . 21 . 29 29 . . 31 43 43 159 159 152 96 . . . . . 10 . . . . . 10 . . . Initial Warlord ECA Mod 18 | . . . . . . . . . 7 7 18 18 17 17 17 17 16 16 16 16 16 16 15 15 15 15 14 14 14 14 14 13 13 13 12 11 11 Total Orders 1 | . . . . . . . . . . . . . . . . . . . . . . 1 . . . . . . . . . . . . . . . STAY 1 | . . . . . . . . . . . . . . . . . . . . . . 1 . . . . . . . . . . . . . . . Ally Attacks 652 | . . . . . . . . 2 . 6 . . 66 . . . 121 95 109 61 33 159 . . . . . . . . . . . . . . . Total Damage 13420 | . . . . . . . . 32 . 142 . . 697 . . . 1920 2295 1784 1351 905 4294 . . . . . . . . . . . . . . . Kills 94 | . . . . . . . . 1 . 3 . . 6 . . . 19 14 10 10 4 27 . . . . . . . . . . . . . . . Allies Corrupted 4 | . . . . . . . . . . . . . . . . . . . . . . 4 . . . . . . . . . . . . . . . Allies Melted . | . . . . . . . . . . . . . . . . . . . . . . . . . . . . . . . . . . . . . . Intel | -11 -10 -10 -9 -9 -9 -8 -8 -8 -8 -8 -8 -8 -7 -7 -7 -7 -6 -6 -6 -6 -6 -6 -5 -5 -5 -5 -4 -4 -4 -4 -4 -3 -3 -3 -2 -1 -1 ------- Run | Yrd Mat Min Mat Min Exi Min Mat Gar Mat Gar Mat Sto Fac Low Low Zio Pro Fac Ext Cet Arc Hub Fac Upp Upp War Pro Fac Upp Upp Zhi Pro Res Tes Res Acc Com Active Infowar (turns) 28077 | . . . . . . . . . . . . 1 2 1939 2094 2258 1020 378 790 . . . 444 1269 1952 842 1602 1433 1479 1610 277 1457 905 2316 970 1631 1408 Optics 13490 | . . . . . . . . . . . . . 2 . . . . . . . . . . . . 2 . 1433 1479 1610 277 1457 905 2316 970 1631 1408 Sensors 23116 | . . . . . . . . . . . . . . 1939 2094 2228 1020 378 790 . . . 444 1269 1952 840 1602 630 1267 1307 . 1221 311 1699 950 1175 . Traps 2 | . . . . . . . . . . . . . . . . . . . . . . . . . 2 . . . . . . . . . . . . Decoding 6136 | . . . . . . . . . . . . . . . . 2 . . . . . . . . . . . . . . . . 875 2316 970 1631 342 T.N.C. 1 | . . . . . . . . . . . . 1 . . . . . . . . . . . . . . . . . . . . . . . . . Spoofing 28 | . . . . . . . . . . . . . . . . 28 . . . . . . . . . . . . . . . . . . . . . Jamming 3733 | . . . . . . . . . . . . . . . . . . . . . . . . . . . . . . . . . . 1634 970 881 248 Robot Analysis Total 8 | . 1 . 1 . . . . . . . . 1 . . . . . . 1 . . . . . . . . . . . 4 . . . . . . Derelict Logs Recovered 16 | . . 3 . 1 . . . . . . . . . 2 . . 2 . . . . . . 2 1 . 1 . 2 2 . . . . . . . Drone Launches . | . . . . . . . . . . . . . . . . . . . . . . . . . . . . . . . . . . . . . . Drone Recoveries . | . . . . . . . . . . . . . . . . . . . . . . . . . . . . . . . . . . . . . . Decoded 0b10 Intel 325 | . . . . . . . . . . . . . . . . . . . . . . . . . . . . . . . . . 62 84 65 94 20 Items 325 | . . . . . . . . . . . . . . . . . . . . . . . . . . . . . . . . . 62 84 65 94 20 Exploration | -11 -10 -10 -9 -9 -9 -8 -8 -8 -8 -8 -8 -8 -7 -7 -7 -7 -6 -6 -6 -6 -6 -6 -5 -5 -5 -5 -4 -4 -4 -4 -4 -3 -3 -3 -2 -1 -1 ------------- Run | Yrd Mat Min Mat Min Exi Min Mat Gar Mat Gar Mat Sto Fac Low Low Zio Pro Fac Ext Cet Arc Hub Fac Upp Upp War Pro Fac Upp Upp Zhi Pro Res Tes Res Acc Com Turns Passed 49397 | 205 1239 992 2256 1269 345 959 291 938 969 1672 487 1799 1329 2333 2245 2262 1731 1384 2092 462 488 694 458 1537 2305 1088 2082 1433 1479 1610 277 1457 905 2316 970 1631 1408 Spaces Moved 23067 | 91 636 569 1077 496 209 559 116 387 403 633 190 655 497 984 1034 1063 746 537 814 188 147 328 252 862 1209 594 1108 709 895 997 160 820 515 1035 539 594 419 Core 1 | 1 . . . . . . . . . . . . . . . . . . . . . . . . . . . . . . . . . . . . . Treads 23066 | 90 636 569 1077 496 209 559 116 387 403 633 190 655 497 984 1034 1063 746 537 814 188 147 328 252 862 1209 594 1108 709 895 997 160 820 515 1035 539 594 419 Legs . | . . . . . . . . . . . . . . . . . . . . . . . . . . . . . . . . . . . . . . Wheels . | . . . . . . . . . . . . . . . . . . . . . . . . . . . . . . . . . . . . . . Hover . | . . . . . . . . . . . . . . . . . . . . . . . . . . . . . . . . . . . . . . Flight . | . . . . . . . . . . . . . . . . . . . . . . . . . . . . . . . . . . . . . . Fastest Speed 50 | 50 160 160 160 160 160 160 155 155 160 206 206 203 205 207 207 206 210 210 210 166 166 166 160 160 160 160 160 155 155 155 155 155 152 155 155 160 152 Average Speed 175 | 158 160 160 160 185 160 160 155 165 188 206 206 203 206 207 207 207 210 210 210 193 166 166 160 160 160 160 162 161 155 155 155 155 154 155 159 160 157 Slowest Speed 240 | 160 160 160 160 200 160 160 155 208 232 206 206 206 207 207 207 210 210 210 210 210 166 225 160 160 160 240 240 240 155 155 155 155 155 155 160 160 160 Overloaded Moves . | . . . . . . . . . . . . . . . . . . . . . . . . . . . . . . . . . . . . . . Propulsion Burnouts . | . . . . . . . . . . . . . . . . . . . . . . . . . . . . . . . . . . . . . . Robots Hopped . | . . . . . . . . . . . . . . . . . . . . . . . . . . . . . . . . . . . . . . Potential Cave-ins 6 | . . . . . . . . . . . . . . . . . . . . . . . . . . 2 . . . . . 4 . . . . . Cave-ins Triggered . | . . . . . . . . . . . . . . . . . . . . . . . . . . . . . . . . . . . . . . Exploration Rate (%) 62 | 7 76 98 84 98 64 98 14 54 39 76 16 80 18 86 94 86 83 18 83 66 79 36 11 97 96 79 94 17 90 99 61 94 24 94 26 23 19 Regions Visited 37 Branch Regions 23 Pre-discovered Areas 15 | . 1 . 3 . 1 . . . . . . . . 2 . 1 2 . . . . . . . . . 1 . . 1 3 . . . . . . Known Exits Taken 29 | . . . 1 . . 1 1 . 1 . . 1 1 1 1 1 1 1 1 1 1 1 1 1 1 1 1 1 1 1 1 1 1 1 1 1 . Unknown Exits Taken 6 | 1 1 1 . 1 1 . . . . . 1 . . . . . . . . . . . . . . . . . . . . . . . . . . Scrap Searched 25 | . . 2 . 1 . 1 . . . . . . . 2 1 3 1 . . . . . . 3 2 . . . 2 5 . 2 . . . . . Spaces Dug 336 | . . . 11 . . 14 . 5 . 13 3 47 1 9 48 . . 5 . . . 4 2 . 18 . 11 5 6 . . 67 5 34 9 13 6 Terrain Destroyed 1331 | . . . 20 28 . 34 11 15 8 24 3 124 1 9 68 . . 5 . . . 4 2 49 140 22 94 134 36 27 . 167 10 90 15 77 114 Melee 25 | . . . 2 . . . . . . 1 3 2 1 9 . . . 2 . . . 4 1 . . . . . . . . . . . . . . Projectile 254 | . . . . . . . . . . . . . . . . . . 3 . . . . 1 4 3 5 35 37 13 . . 18 10 46 15 40 24 AOE 1052 | . . . 18 28 . 34 11 15 8 23 . 122 . . 68 . . . . . . . . 45 137 17 59 97 23 27 . 149 . 44 . 37 90 Terrain Rammed . | . . . . . . . . . . . . . . . . . . . . . . . . . . . . . . . . . . . . . . Walls Destroyed . | . . . . . . . . . . . . . . . . . . . . . . . . . . . . . . . . . . . . . . Machines Disabled . | . . . . . . . . . . . . . . . . . . . . . . . . . . . . . . . . . . . . . . Actions | -11 -10 -10 -9 -9 -9 -8 -8 -8 -8 -8 -8 -8 -7 -7 -7 -7 -6 -6 -6 -6 -6 -6 -5 -5 -5 -5 -4 -4 -4 -4 -4 -3 -3 -3 -2 -1 -1 --------- Run | Yrd Mat Min Mat Min Exi Min Mat Gar Mat Gar Mat Sto Fac Low Low Zio Pro Fac Ext Cet Arc Hub Fac Upp Upp War Pro Fac Upp Upp Zhi Pro Res Tes Res Acc Com Total 29449 | 123 761 612 1456 799 217 603 213 534 550 833 248 922 784 1205 1103 1120 895 699 1083 269 366 456 295 954 1531 676 1276 901 956 1045 185 944 591 1602 631 1129 882 Wait 3397 | 8 38 8 179 261 . 16 79 29 64 53 30 87 246 154 37 5 75 65 119 33 184 109 9 31 256 1 80 91 20 17 . 61 13 367 28 394 150 Move 23033 | 90 635 568 1076 495 208 558 116 386 403 632 189 654 496 983 1033 1062 745 536 813 187 146 328 251 861 1208 593 1107 708 894 996 159 819 515 1034 538 593 418 Hop . | . . . . . . . . . . . . . . . . . . . . . . . . . . . . . . . . . . . . . . Pick Up 252 | 6 10 5 31 4 1 3 2 8 18 1 4 12 9 7 2 9 5 4 2 9 2 1 3 4 4 3 5 11 3 2 2 . 8 9 10 7 26 Fast Attach 157 | 6 4 . 6 1 . . . 3 3 3 . 14 3 . 1 7 . . 2 3 5 1 2 8 4 13 5 7 2 1 7 . 7 15 8 4 12 Attach 87 | . 1 . 5 1 . . 2 9 1 3 . 10 2 2 . . . 2 3 . . . 3 . 1 . 4 5 . . . . 2 4 2 4 21 Detach 71 | . 1 . 3 . . . . 3 3 . . 8 1 1 . 3 . . 1 1 1 . 2 1 2 4 2 4 . . 1 . 3 6 3 3 14 Swap 501 | . 9 4 27 6 3 9 5 10 13 21 5 21 6 16 11 16 16 21 16 8 6 4 12 11 25 11 15 14 11 12 2 23 7 40 9 30 26 Drop 317 | . 7 4 36 5 1 3 . 2 15 7 4 17 10 6 2 15 5 2 2 14 5 1 4 9 7 14 7 13 5 4 8 . 13 20 17 7 26 Fire 1200 | 13 51 18 85 26 . 11 9 75 28 61 13 76 6 18 16 . 4 46 38 5 . 2 4 29 23 20 51 48 21 13 . 41 23 102 16 84 124 Melee 184 | . . . 2 . 4 . . 9 . 7 3 10 1 18 1 3 24 3 3 1 17 7 1 . . 9 . . . . 6 . . . . . 55 Ram . | . . . . . . . . . . . . . . . . . . . . . . . . . . . . . . . . . . . . . . Kick . | . . . . . . . . . . . . . . . . . . . . . . . . . . . . . . . . . . . . . . Crush 45 | . 5 5 3 . . 3 . . 2 1 . 5 2 . . . 2 2 5 . . . . . 1 . . . . . . . . 5 . 3 1 Escape Stasis 32 | . . . . . . . . . . 16 . . 2 . . . . . 14 . . . . . . . . . . . . . . . . . . Rewire 96 | . . . . . . . . . . 19 . . . . . . 19 . 57 . . . . . . . . . . . . . . . . . 1 Trap 33 | . . . 3 . . . . . . . . . . . . . . 18 . . . . 4 . . . . . . . . . . . . . 8 Miscellaneous 44 | . . . . . . . . . . 9 . 8 . . . . . . 8 8 . 3 . . . 8 . . . . . . . . . . . Route ------- -11/Scrapyard -10/Materials (discovered 3 exits: *Mat x2 / [*Min]) -10/Mines (discovered 3 exits: *Mat x2 / Sub) -9/Materials (discovered 4 exits: *Mat x3 / *Min) -9/Mines (discovered 3 exits: *Mat x2 / *Exi) -9/Exiles (discovered 2 exits: [*Min x2]) -8/Mines (discovered 2 exits: *Mat x2) -8/Materials (discovered 4 exits: Fac x2 / *Sto / Gar) -8/Garrison (discovered 3 exits: *Mat x3) -8/Materials (discovered 4 exits: *Fac x2 / *Sto / Gar) -8/Garrison (discovered 2 exits: [*Mat x2]) -8/Materials -8/Storage (discovered 2 exits: *Fac / Rec) -7/Factory (discovered 2 exits: *Low x2) -7/Lower Caves -7/Lower Caves (discovered 2 exits: *Fac / *Zio) -7/Zion -6/Proximity Caves -6/Factory -6/Extension (discovered 2 exits: *Fac / *Cet) -6/Cetus (discovered 2 exits: *Fac / *Arc) -6/Archives (discovered 3 exits: *Fac / *Hub x2) -6/Hub_04(d) (discovered 2 exits: *Fac x2) -5/Factory (discovered 3 exits: *Fac / *Upp x2) -5/Upper Caves -5/Upper Caves (discovered 2 exits: *Fac / *War) -5/Warlord -4/Proximity Caves -4/Factory (discovered 3 exits: *Res x2 / *Upp) -4/Upper Caves -4/Upper Caves (discovered 2 exits: *Res / *Zhi) -4/Zhirov -3/Proximity Caves -3/Research (discovered 4 exits: *Res / Arm / *Tes x2) -3/Testing -2/Research -1/Access -1/Command (discovered 2 exits: [*Sur x2]) 0b11 Command History --------- Turn | Location | Event 42 | -11/Scrapyard | Discovered new exit (range 15) 206 | -11/Scrapyard | Entered Materials 277 | -10/Materials | Discovered new exit (range 15) 302 | -10/Materials | Build established: Mutant 494 | -10/Materials | Central database locked down 494 | -10/Materials | Discovered new exit (range 12) 644 | -10/Materials | Discovered new exit (range 8) 1445 | -10/Materials | Entered Mines 1452 | -10/Mines | Learned location of 1 exit from Materials 1539 | -10/Mines | Discovered new exit (range 5) 1696 | -10/Mines | Identified exit to Subcaves 1803 | -10/Mines | Learned Materials non-interactive machine intel 1851 | -10/Mines | Found a hidden stash of uninstalled traps 2096 | -10/Mines | Discovered new exit (range 15) 2336 | -10/Mines | Core integrity fell below 50% 2437 | -10/Mines | Entered Materials 2437 | -9/Materials | Evolved 2 slots: Propulsion x1, Utility x1 2438 | -9/Materials | Identified exit to Materials 2439 | -9/Materials | Loaded intel: 55 non-interactive machine locations 2813 | -9/Materials | Discovered new exit (range 16) 2882 | -9/Materials | Identified exit to Mines 3813 | -9/Materials | Discovered exit to Materials (range 3) 3956 | -9/Materials | Build established: Scavenger-Mutant 4037 | -9/Materials | First assault squad dispatched 4179 | -9/Materials | Repaired Lgt. Treads+ 4258 | -9/Materials | Learned location of Zion (-7) 4294 | -9/Materials | Loaded intel: 1 repair station location 4294 | -9/Materials | Build established: Mutant 4330 | -9/Materials | Learned location of 1 exit from Storage 4331 | -9/Materials | Learned 2 Storage zone layouts 4344 | -9/Materials | Learned 2 Storage zone layouts 4365 | -9/Materials | Learned Storage security intel 4473 | -9/Materials | Central database locked down 4693 | -9/Materials | Entered Mines 4710 | -9/Mines | Assembled infested the area 4715 | -9/Mines | Assisted by a Guerilla fighting off Assembled 5045 | -9/Mines | Deemed a non-threat by the Exiles lab entrance 5045 | -9/Mines | Discovered new exit (range 5) 5185 | -9/Mines | Found a Scrap Suit stashed away for nefarious purposes 5191 | -9/Mines | Found Scrap Suit 5302 | -9/Mines | Learned 8 Materials zone layouts 5459 | -9/Mines | Discovered exit to Materials (range 10) 5518 | -9/Mines | Discovered exit to Materials (range 15) 5962 | -9/Mines | Entered Exiles 5990 | -9/Exiles | Discovered new exit (range 15) 6004 | -9/Exiles | Met 8R-AWN 6036 | -9/Exiles | Met EX-HEX 6111 | -9/Exiles | Met EX-DEC 6171 | -9/Exiles | Met EX-BIN 6291 | -9/Exiles | Discovered new exit (range 10) 6307 | -9/Exiles | Entered Mines 6402 | -8/Mines | Discovered exit to Materials (range 5) 6598 | -8/Mines | Discovered exit to Materials (range 14) 7266 | -8/Mines | Entered Materials 7266 | -8/Materials | Evolved 2 slots: Utility x1, Weapon x1 7267 | -8/Materials | Identified exit to Factory 7291 | -8/Materials | Discovered new exit (range 15) 7514 | -8/Materials | Repaired Lgt. Treads+ 7557 | -8/Materials | Identified exit to Garrison 7557 | -8/Materials | Entered Garrison 7568 | -8/Garrison | Discovered new exit (range 75) 7568 | -8/Garrison | Discovered new exit (range 63) 7568 | -8/Garrison | Discovered new exit (range 39) 7610 | -8/Garrison | Build established: Gunner 7653 | -8/Garrison | Triggered checkpoint 7681 | -8/Garrison | Garrison Relay disabled 7728 | -8/Garrison | Triggered checkpoint 7729 | -8/Garrison | Triggered checkpoint 7770 | -8/Garrison | Triggered checkpoint 7819 | -8/Garrison | Lost 4 parts (1n1u2w) 7897 | -8/Garrison | Triggered checkpoint 7926 | -8/Garrison | Garrison Relay disabled 7952 | -8/Garrison | Rescued a captive Derelict 8023 | -8/Garrison | Triggered checkpoint 8139 | -8/Garrison | Triggered checkpoint 8182 | -8/Garrison | Garrison Relay disabled 8434 | -8/Garrison | Build established: Scavenger-Gunner 8495 | -8/Garrison | Entered Materials 8627 | -8/Materials | Repaired Huge Storage Unit 8660 | -8/Materials | Repaired Imp. Light Cannon? 8973 | -8/Materials | Discovered exit to Factory (range 7) 9034 | -8/Materials | Discovered new exit (range 15) 9332 | -8/Materials | Discovered exit to Factory (range 20) 9464 | -8/Materials | Identified exit to Garrison 9464 | -8/Materials | Entered Garrison 9704 | -8/Garrison | Garrison Relay disabled 9816 | -8/Garrison | Triggered checkpoint 9833 | -8/Garrison | Build established: Scavenger-Tank 9840 | -8/Garrison | P-60 Hacker assimilated allied Commando 3a 9979 | -8/Garrison | Garrison Relay disabled 10102 | -8/Garrison | Destroyed 8 combat bots 10122 | -8/Garrison | Spotted B-75 Beast 10122 | -8/Garrison | Spotted B-75 Beast 10170 | -8/Garrison | Triggered checkpoint 10194 | -8/Garrison | Triggered checkpoint 10294 | -8/Garrison | Triggered checkpoint 10336 | -8/Garrison | Garrison Relay disabled 10413 | -8/Garrison | Phase Generator disabled 10482 | -8/Garrison | Discovered new exit (range 3) 10544 | -8/Garrison | Core integrity fell below 50% 10719 | -8/Garrison | System corruption reached 10% 10913 | -8/Garrison | Discovered new exit (range 10) 10968 | -8/Garrison | Triggered checkpoint 11030 | -8/Garrison | Garrison Relay disabled 11136 | -8/Garrison | Entered Materials 11495 | -8/Materials | Discovered new exit (range 15) 11536 | -8/Materials | First assault squad dispatched 11623 | -8/Materials | Entered Storage 11625 | -8/Storage | Identified exit to Recycling 11770 | -8/Storage | Build established: Tank 11831 | -8/Storage | Garrison activated, responded to threat 12028 | -8/Storage | Found Exp. Targeting Computer 12104 | -8/Storage | Build established: Scavenger-Tank 12423 | -8/Storage | First assault squad dispatched 12466 | -8/Storage | Core integrity fell below 20% 12487 | -8/Storage | Destroyed 9 combat bots 12932 | -8/Storage | Repaired Arm. Treads+ 13005 | -8/Storage | Repaired Broken Hvy. Ion Engine? 13151 | -8/Storage | Assisted by bots powering up and referring to "LRC-V3" 13422 | -8/Storage | Entered Factory 13422 | -7/Factory | Accompanied by 10 allies 13422 | -7/Factory | Evolved 2 slots: Propulsion x1, Utility x1 13705 | -7/Factory | Build established: Commander-Gunner 13746 | -7/Factory | Specialist reinforcements revealed to be Infiltrators 13819 | -7/Factory | Lost 3 allies 13994 | -7/Factory | Identified exit to Lower Caves 14204 | -7/Factory | Lost 3 allies 14459 | -7/Factory | Build established: Scavenger-Gunner 14751 | -7/Factory | Entered Lower Caves 14779 | -7/Lower Caves | Met a Warlord Commander 14780 | -7/Lower Caves | Learned location of Warlord (-5) 14781 | -7/Lower Caves | Warlord Commander delivered Encrypted Comm Array 14788 | -7/Lower Caves | Found Encrypted Comm Array 14801 | -7/Lower Caves | Learned Factory garrison access intel 15092 | -7/Lower Caves | Build established: Skirmisher 15110 | -7/Lower Caves | Attracted the attention of an 0b10 checkpoint 15497 | -7/Lower Caves | Attacked by a delusional Derelict stockpiling parts 15590 | -7/Lower Caves | Attracted the attention of an 0b10 outpost 15922 | -7/Lower Caves | Entered an active Warlord outpost 15966 | -7/Lower Caves | Learned location of Extension (-6) 16110 | -7/Lower Caves | Learned Factory trap positions 16319 | -7/Lower Caves | Discovered new exit (range 5) 16649 | -7/Lower Caves | Encountered a Warlord checkpoint 16759 | -7/Lower Caves | Build established: Mutant 16973 | -7/Lower Caves | Destroyed HT-TWT(g) 17079 | -7/Lower Caves | Identified exit to Lower Caves 17084 | -7/Lower Caves | Entered another Lower Caves area 17092 | -7/Lower Caves | Discovered new exit (range 11) 17208 | -7/Lower Caves | Attracted the attention of an 0b10 checkpoint 17593 | -7/Lower Caves | Build established: Skirmisher 17596 | -7/Lower Caves | Encountered a Warlord checkpoint 18085 | -7/Lower Caves | Discovered new exit (range 13) 18107 | -7/Lower Caves | Identified exit to Zion 19329 | -7/Lower Caves | Entered Zion 19528 | -7/Zion | System corruption cleaned by Quarantine Array 19588 | -7/Zion | Discovered new exit (range 14) 20079 | -7/Zion | Gained Derelict followers 20130 | -7/Zion | Gained Derelict followers 20366 | -7/Zion | Build established: Mutant 20395 | -7/Zion | Met Imprinter 20718 | -7/Zion | Acquired unknown access codes intercepted by a Zionite 21437 | -7/Zion | Visited the Megawrench Repair Shop 21437 | -7/Zion | Megawrench repaired 10 parts 21533 | -7/Zion | Build established: Skirmisher 21580 | -7/Zion | Identified exit to Proximity Caves 21591 | -7/Zion | Entered Proximity Caves 21591 | -6/Proximity Caves | Accompanied by 7 allies 22635 | -6/Proximity Caves | Snuck into a huge 0b10 base via the rear entrance 22786 | -6/Proximity Caves | Discovered new exit (range 5) 22862 | -6/Proximity Caves | Lost 7 allies 23002 | -6/Proximity Caves | Fabricated Arm. Treads? 23291 | -6/Proximity Caves | Build established: Commander-Gunner 23311 | -6/Proximity Caves | Identified exit to Factory 23322 | -6/Proximity Caves | Entered Factory 23322 | -6/Factory | Accompanied by 7 allies 23322 | -6/Factory | Evolved 2 slots: Utility x2 23323 | -6/Factory | Loaded intel: 99 trap records 23324 | -6/Factory | Loaded intel: 4 garrison access locations 23769 | -6/Factory | Lost 4 allies 23790 | -6/Factory | Garrison activated, responded to threat 23922 | -6/Factory | Lost 3 allies 24121 | -6/Factory | Build established: Gunner 24479 | -6/Factory | Discovered new exit (range 3) 24484 | -6/Factory | Identified exit to Extension 24706 | -6/Factory | Entered Extension 25243 | -6/Extension | Central database locked down 25399 | -6/Extension | Spotted B-75 Beast 25463 | -6/Extension | Rescued a captive Derelict 25463 | -6/Extension | Rescued a captive Derelict 25804 | -6/Extension | Rescued a captive Derelict 25805 | -6/Extension | Rescued a captive Derelict 25896 | -6/Extension | Build established: Commander-Gunner 26093 | -6/Extension | Allies destroyed B-75 Beast 26094 | -6/Extension | Spotted B-75 Beast 26108 | -6/Extension | Allies destroyed B-75 Beast 26354 | -6/Extension | Rescued a captive Derelict 26354 | -6/Extension | Rescued a captive Derelict 26552 | -6/Extension | Rescued a captive Derelict 26622 | -6/Extension | Rescued A7 26741 | -6/Extension | Discovered new exit (range 10) 26743 | -6/Extension | Discovered new exit (range 6) 26796 | -6/Extension | Identified exit to Cetus 26798 | -6/Extension | Entered Cetus 26798 | -6/Cetus | Accompanied by 16 allies (A7) 26803 | -6/Cetus | Acquired a Cetus Manufacturing Module code from A7 26817 | -6/Cetus | Spotted Cetus Guard 26817 | -6/Cetus | Spotted Cetus Guard 26819 | -6/Cetus | Spotted Cetus Guard 26821 | -6/Cetus | Spotted Cetus Guard 26825 | -6/Cetus | Allies destroyed Cetus Guard 26832 | -6/Cetus | Allies destroyed Cetus Guard 26832 | -6/Cetus | Allies destroyed Cetus Guard 26834 | -6/Cetus | Allies destroyed Cetus Guard 26965 | -6/Cetus | Started Cetus Manufacturing Module 26990 | -6/Cetus | Manufactured an Enhanced Grunt 26996 | -6/Cetus | Escorted A7 to Cetus Mainframe 27015 | -6/Cetus | Manufactured an Enhanced Grunt 27026 | -6/Cetus | Discovered new exit (range 16) 27040 | -6/Cetus | Manufactured an Enhanced Grunt 27064 | -6/Cetus | Spotted Cetus Guard 27064 | -6/Cetus | Spotted Cetus Guard 27065 | -6/Cetus | Manufactured an Enhanced Grunt 27067 | -6/Cetus | Spotted Cetus Guard 27068 | -6/Cetus | Allies destroyed Cetus Guard 27069 | -6/Cetus | Spotted Cetus Guard 27078 | -6/Cetus | Allies destroyed Cetus Guard 27078 | -6/Cetus | Allies destroyed Cetus Guard 27082 | -6/Cetus | Allies destroyed Cetus Guard 27090 | -6/Cetus | Manufactured an Enhanced Grunt 27100 | -6/Cetus | Discovered new exit (range 16) 27113 | -6/Cetus | Met Revision 17 27231 | -6/Cetus | Identified exit to Archives 27260 | -6/Cetus | Entered Archives 27260 | -6/Archives | Accompanied by 18 allies (A7) 27265 | -6/Archives | Received a hacking code to weaken MAIN.C 27340 | -6/Archives | Discovered new exit (range 15) 27634 | -6/Archives | Discovered new exit (range 15) 27644 | -6/Archives | Build established: Commander-Mutant 27664 | -6/Archives | Discovered new exit (range 16) 27723 | -6/Archives | Identified exit to Hub_04(d) 27748 | -6/Archives | Entered Hub_04(d) 27748 | -6/Hub_04(d) | Accompanied by 14 allies 27936 | -6/Hub_04(d) | Garrison activated, responded to threat 27964 | -6/Hub_04(d) | Build established: Commander-Gunner 28050 | -6/Hub_04(d) | Discovered new exit (range 8) 28297 | -6/Hub_04(d) | Discovered new exit (range 7) 28308 | -6/Hub_04(d) | Identified exit to Factory 28312 | -6/Hub_04(d) | Build established: Commander-Mutant 28382 | -6/Hub_04(d) | Network Hub disabled 28424 | -6/Hub_04(d) | Spotted Lightning 28438 | -6/Hub_04(d) | Spotted Lightning 28440 | -6/Hub_04(d) | Spotted Lightning 28440 | -6/Hub_04(d) | Spotted Lightning 28442 | -6/Hub_04(d) | Entered Factory 28442 | -5/Factory | Evolved 2 slots: Power x1, Utility x1 28458 | -5/Factory | Lost 7 allies 28652 | -5/Factory | Discovered new exit (range 9) 28665 | -5/Factory | Identified exit to Factory 28741 | -5/Factory | Build established: Scavenger-Tank 28849 | -5/Factory | Identified exit to Upper Caves 28900 | -5/Factory | Entered Upper Caves 29423 | -5/Upper Caves | Attracted the attention of an 0b10 checkpoint 29721 | -5/Upper Caves | Entered a destroyed Warlord outpost 29735 | -5/Upper Caves | Learned 8 Factory zone layouts 29753 | -5/Upper Caves | Learned Factory terminal intel 30040 | -5/Upper Caves | Discovered new exit (range 4) 30047 | -5/Upper Caves | Identified exit to Upper Caves 30166 | -5/Upper Caves | Found Imp. Powered Armor 30437 | -5/Upper Caves | Entered another Upper Caves area 30570 | -5/Upper Caves | Discovered exit to Factory (range 9) 30851 | -5/Upper Caves | Spotted B-75 Beast 30880 | -5/Upper Caves | Destroyed B-75 Beast 31564 | -5/Upper Caves | Attracted the attention of an 0b10 checkpoint 31659 | -5/Upper Caves | Discovered new exit (range 8) 32741 | -5/Upper Caves | Identified exit to Warlord 32742 | -5/Upper Caves | Entered Warlord 32907 | -5/Warlord | Build established: Scavenger-Mutant 33203 | -5/Warlord | Found Prototype Device 33203 | -5/Warlord | Identified System Purifier 33207 | -5/Warlord | Found Prototype Processor 33207 | -5/Warlord | Identified Exp. Target Analyzer 33214 | -5/Warlord | Found Prototype Hackware 33225 | -5/Warlord | Found Prototype Reactor 33243 | -5/Warlord | Identified Ghost Barrier 33321 | -5/Warlord | Met Warlord 33328 | -5/Warlord | Warlord's base attacked by MAIN.C 33517 | -5/Warlord | Found Prototype Energy Gun 33517 | -5/Warlord | Identified Vortex Rail 33678 | -5/Warlord | Warlord forces counterattacked 33692 | -5/Warlord | Spotted Executioner 33696 | -5/Warlord | Spotted Executioner 33702 | -5/Warlord | Destroyed Executioner 33729 | -5/Warlord | Lost 3 allies 33733 | -5/Warlord | Spotted Striker 33766 | -5/Warlord | Spotted Executioner 33813 | -5/Warlord | Lost 8 allies 33813 | -5/Warlord | Discovered new exit (range 12) 33823 | -5/Warlord | Build established: Scavenger-Tank 33827 | -5/Warlord | Identified exit to Proximity Caves 33830 | -5/Warlord | Entered Proximity Caves 34548 | -4/Proximity Caves | Learned Research garrison access intel 35044 | -4/Proximity Caves | Attracted the attention of an 0b10 base 35119 | -4/Proximity Caves | Lost 3 parts (1p2w) 35123 | -4/Proximity Caves | Destroyed 13 combat bots 35148 | -4/Proximity Caves | Identified Vortex Chain Reactor 35211 | -4/Proximity Caves | Learned Armory security intel 35211 | -4/Proximity Caves | Learned Extension security intel 35211 | -4/Proximity Caves | Learned Research emergency access door positions 35568 | -4/Proximity Caves | Discovered exit to Factory (range 3) 35761 | -4/Proximity Caves | Spotted B-86 Titan 35781 | -4/Proximity Caves | Build established: Trapper-Tank 35912 | -4/Proximity Caves | Entered Factory 35912 | -4/Factory | Evolved 2 slots: Propulsion x1, Utility x1 35913 | -4/Factory | Identified exit to Research 35915 | -4/Factory | Loaded intel: 26 terminal locations 36581 | -4/Factory | Discovered new exit (range 4) 36586 | -4/Factory | Identified exit to Upper Caves 36687 | -4/Factory | Repaired Centrium Heavy Treads? 36998 | -4/Factory | Discovered exit to Research (range 4) 37134 | -4/Factory | Fabricated Centrium Heavy Treads? 37345 | -4/Factory | Entered Upper Caves 37523 | -4/Upper Caves | Learned Research terminal intel 37529 | -4/Upper Caves | Learned 4 Research zone layouts 37610 | -4/Upper Caves | Build established: Trapper-Gunner 38325 | -4/Upper Caves | Attracted the attention of an 0b10 checkpoint 38398 | -4/Upper Caves | Discovered new exit (range 16) 38418 | -4/Upper Caves | Identified exit to Upper Caves 38824 | -4/Upper Caves | Entered another Upper Caves area 39146 | -4/Upper Caves | Attracted the attention of an 0b10 checkpoint 39198 | -4/Upper Caves | Learned location of Testing (-3) 39647 | -4/Upper Caves | Discovered new exit (range 5) 40431 | -4/Upper Caves | Identified exit to Zhirov 40434 | -4/Upper Caves | Entered Zhirov 40434 | -4/Zhirov | Discovered new exit (range 3) 40462 | -4/Zhirov | Met Zhirov 40509 | -4/Zhirov | Learned location of Quarantine (-2) 40509 | -4/Zhirov | Learned location of Command (-1) 40518 | -4/Zhirov | Zhirov requested help retrieving the SGEMP Prototype 40542 | -4/Zhirov | Found Alien Artifact 40542 | -4/Zhirov | Identified Integrated Reactor 40542 | -4/Zhirov | Installed Integrated Reactor, increased core energy generation (+10) 40653 | -4/Zhirov | Found Alien Artifact 40710 | -4/Zhirov | Identified exit to Proximity Caves 40711 | -4/Zhirov | Entered Proximity Caves 41148 | -3/Proximity Caves | Attracted the attention of an 0b10 checkpoint 42147 | -3/Proximity Caves | Discovered exit to Research (range 6) 42168 | -3/Proximity Caves | Entered Research 42168 | -3/Research | Evolved 2 slots: Propulsion x1, Utility x1 42169 | -3/Research | Identified exit to Armory 42172 | -3/Research | Loaded intel: 21 terminal locations 42173 | -3/Research | Loaded intel: 3 garrison access locations 42251 | -3/Research | Repaired Centrium Heavy Treads? 42368 | -3/Research | Revision forces began assault on 0b10 42470 | -3/Research | Met up with Revision 17++ 42575 | -3/Research | Found Gamma Bomb Array 42711 | -3/Research | Identified exit to Testing 42736 | -3/Research | Identified Transdimensional Reconstructor 42778 | -3/Research | Build established: Trapper-Tank 42860 | -3/Research | Found Exp. Terrain Scan Processor 42868 | -3/Research | Research terminal network offline 43000 | -3/Research | Found Prototype Hackware 43049 | -3/Research | Discovered new exit (range 9) 43069 | -3/Research | Spotted Striker 43069 | -3/Research | Spotted Striker 43073 | -3/Research | Entered Testing 43128 | -3/Testing | Identified Exp. System Shield 43976 | -3/Testing | Discovered new exit (range 12) 44150 | -3/Testing | Protovariant out of control (PL-4KN23UD4M9) 44150 | -3/Testing | Unleashed a protovariant (PL-4KN23UD4M9) 44413 | -3/Testing | Repaired Imp. Powered Armor 44429 | -3/Testing | Repaired Centrium Medium Armor Plating? 44497 | -3/Testing | Repaired Quantum Reactor+? 44760 | -3/Testing | Found Prototype Energy Cannon 44760 | -3/Testing | Identified Potential Cannon 44764 | -3/Testing | Found Prototype Energy Cannon 44764 | -3/Testing | Identified Imp. Potential Cannon 45257 | -3/Testing | Build established: Scientist-Tank 45388 | -3/Testing | Identified exit to Research 45389 | -3/Testing | Entered Research 45389 | -2/Research | Warlord forces began assault on 0b10 45389 | -2/Research | Evolved 2 slots: Power x1, Utility x1 45414 | -2/Research | Distinguished unit "Lobotomizers" dispatched to help 45414 | -2/Research | Distinguished unit "Cat Herders" dispatched to help 45499 | -2/Research | Research machine network offline 45501 | -2/Research | Lost 8 allies 45518 | -2/Research | Found Prototype Device 45522 | -2/Research | Found Prototype Device 45527 | -2/Research | Identified Exp. EM Disruption Field (x2) 45802 | -2/Research | Found Prototype Launcher 45803 | -2/Research | Identified Mni. Smartbomb Launcher 45807 | -2/Research | Build established: Trapper-Tank 45818 | -2/Research | Warlord destroyed during the assault 45860 | -2/Research | Found Prototype Device 45867 | -2/Research | Identified Thermal Barrier 45933 | -2/Research | Discovered new exit (range 17) 45958 | -2/Research | Identified exit to Access 46154 | -2/Research | Spotted Striker 46164 | -2/Research | Spotted Striker 46195 | -2/Research | Lost 5 allies 46227 | -2/Research | Found Prototype Launcher 46231 | -2/Research | Identified Ragnarok Missile Launcher 46258 | -2/Research | Spotted Striker 46304 | -2/Research | Borebot progress halted 46320 | -2/Research | Found Exp. Core Analyzer 46359 | -2/Research | Entered Access 46359 | -1/Access | Evolved 2 slots: Utility x1, Weapon x1 46473 | -1/Access | Garrison activated, responded to threat 46616 | -1/Access | Build established: Hacker-Tank 46626 | -1/Access | Identified exit to Command 46686 | -1/Access | System corruption reached 10% 47375 | -1/Access | Spotted B-99 Colossus 47990 | -1/Access | Entered Command 48233 | -1/Command | Spotted B-99 Colossus 48240 | -1/Command | First assault squad dispatched 48251 | -1/Command | Destroyed B-99 Colossus 48502 | -1/Command | Spotted M Guard 48504 | -1/Command | Spotted M Guard 48523 | -1/Command | Spotted Combat Programmer 48523 | -1/Command | Spotted Combat Programmer 48580 | -1/Command | Destroyed M Guard 48612 | -1/Command | Destroyed Combat Programmer 48619 | -1/Command | Destroyed M Guard 48623 | -1/Command | Lost 5 parts (1p2n2w) 48640 | -1/Command | Destroyed 7 combat bots 48680 | -1/Command | Build established: Scavenger-Tank 48851 | -1/Command | System corruption reached 30% 48929 | -1/Command | Destroyed Combat Programmer 48929 | -1/Command | All MAIN.C guards destroyed 49133 | -1/Command | Destroyed 10 combat bots 49183 | -1/Command | Met MAIN.C 49183 | -1/Command | Hacked MAIN.C using A7's code 49191 | -1/Command | 0b10 Conduit disabled 49207 | -1/Command | Destroyed MAIN.C Shell 49210 | -1/Command | MAIN.C activated Command garrisons 49263 | -1/Command | Destroyed MAIN.C 49289 | -1/Command | Discovered new exit (range 38) 49289 | -1/Command | Discovered new exit (range 80) 49289 | -1/Command | Extracted map data and part IDs from MAIN.C's data core 49292 | -1/Command | Lost 6 parts (2n4u) 49398 | *** | Establishing 0b11! Last Messages --------------- 49351_ Slug penetrates G-73 Enforcer. 49351_ G-73 Enforcer destroyed. 49352_ K-01 Serf collects debris. 49358_ System corrupted: Enh. Hardcell Cannon jammed. 49361_ K-01 Serf collects debris. 49361_ L-61 Swordsman knocked back. 49361_ Destroyed Flexi-carbon Leg. 49361_ L-61 Swordsman destroyed. 49361_ Destroyed Wheel. 49361_ K-01 Serf knocked back. 49361_ K-01 Serf collects debris. 49366_ Acquired 142 matter. 49366_ K-01 Serf collects debris. 49367_ System corrupted: Energy discharge (-240). 49370_ K-01 Serf collects debris. 49372_ Acquired 50 matter. 49374_ K-01 Serf collects debris. 49388_ System corrupted: Energy discharge (-201). 49388_ K-01 Serf collects debris. Map ----- +----------------------------------------------------+ | ########## # ! #???????? | | ## # # #???????? | | ## ! + # * "" #???????? | | ## # # = """"#???????? | | ########## # """"#???????? | | # "" #???????? | | + #???????? | | # #???????? | | #######+## # #???????? | | ######## ## #% #! #???????? | | #???####+##### # # #???????? | | #????# ## =# # #???????? | | #????# ## # ##############???????? | | #????# ##] # %#????????????????????? | | ###### ########## ########?????????????? | | + + ""#??????# %! ######????????? | | ###### = ""#??????# #????????? | | #????# ""#??????# #????????? | | ####????# T#??????# #????????? | | ######### ""#??????# #????????? | | """"# ## ""#??????# #????????? | | " + ## ""#??????# *!= #????????? | | " + ## #??????########%[ #????????? | | " + # #???????####### [ !! #????????? | | """"# #########???????# ## %! ! #?????#### | | ##### #???????????????# @ ## #?????#??? | | # #???????????????# ## #?????#?## | | # #???????????????### ## #?????#?#" | | + #?????????????????# ## #?????#?#" | | ! # #?????????######### #?????#?#" | | # #?????????# # #?????#?#" | | # #?????????#[ + #?????#?#" | | # #?????????# # #?????#?#" | | # ################### "" #?????#?#" | | # """" #?????#?# | | ##### % % """" #?????#?# | | ????# k "" #?????#?# | | ##### ############# #?????#?#" | | # # #?????#?#" | | # + % !!#?????#?# | | # # % % %[=####??#?# | | # # %%=[**###### | | # # [%k [%[ = ! | | ^ ############# %[ = [%=/ | | ############# = [%[ ! | | = =* ##### | | ^ ####### """##?#?# | | #??# ##??#?# | | ^ #??# #???#?## | | ^ #?#" "" #???#??? | +----------------------------------------------------+ Best States ------------- Heat Dissipation 98 Coolant Potential 100 Energy Generation 83 Energy Capacity 840 Matter Stores 300 Matter Capacity 800 Sight Range 23 Robot Scan Range 19 Terrain Scan Density 10 Jamming Range 16 Armor Coverage 800 Resistance: KI 20 Resistance: EX 50 Core Shielding 30 Utility Shielding 66 Weapon Shielding 66 Point Defense Rating 240 Phase Shifting 5 Evasion (%) 45 Targeting Accuracy 12 Target Analysis 8 Core Analysis 8 Recoil Reduction 6 Kinecelleration 30 Salvage Targeting 3 Offensive Hacking 26 Trap Extractor Capacity 8 Item Schematics ----------------- Reactive Plating | -9/Materials | Scanalyzed Core Shielding | -9/Materials | Extracted Huge Storage Unit | -8/Materials | Scanalyzed Arm. Treads | -8/Materials | Scanalyzed Plasma Cutter | -8/Materials | Scanalyzed Hacking Suite | -8/Materials | Scanalyzed Slug Cannon | -7/Zion | Free Ripper | -7/Zion | Free Imp. KE Penetrator | -7/Zion | Archive Arm. Leg | -7/Zion | Archive Gravmag System | -7/Zion | Archive Point Defense System | -7/Zion | Archive Proton Missile Launcher | -7/Zion | Archive Focal Shield | -7/Zion | Archive Imp. Carbon-fiber Leg | -7/Zion | Archive Imp. Proton Missile Launcher | -7/Zion | Archive EM Disruption Field | -7/Zion | Archive Coil Gun | -7/Zion | Archive Transmission Jammer | -7/Zion | Archive Adv. Hacking Suite | -7/Zion | Archive Gauss Rifle | -7/Zion | Archive Shock Absorption System | -7/Zion | Archive Imp. Medium Treads | -7/Zion | Archive Centrium Heavy Treads | -4/Factory | Scanalyzed Centrium Medium Armor Plating | -4/Factory | Scanalyzed Assault Drone Bay | -4/Zhirov | Free Exp. Heat Sink | -4/Zhirov | Free Exp. Optical Array | -4/Zhirov | Free Imp. Arc Thrower | -4/Zhirov | Free Imp. Powered Armor | -3/Testing | Scanalyzed Exp. Thermal Shield | -3/Testing | Archive Adv. Energy Well | -3/Testing | Archive Cld. Proton Cannon | -3/Testing | Archive Tesla Bomb Launcher | -3/Testing | Archive Enh. Armored Medium Treads | -3/Testing | Archive Robot Schematics ------------------ G-47 Trooper | -8/Storage | Hacked R-06 Scavenger | -7/Zion | Archive W-25 Informer | -7/Zion | Archive T-07 Excavator | -7/Zion | Archive Fabricated ------------ Arm. Treads | x2 | -6/Proximity Caves Centrium Heavy Treads | x1 | -4/Factory Repaired ---------- Lgt. Treads | 74% | -9/Materials Lgt. Treads | 52% | -8/Materials Huge Storage Unit | 86% | -8/Materials Imp. Light Cannon | 17% | -8/Materials Arm. Treads | 34% | -8/Storage Hvy. Ion Engine | 38% | -8/Storage | Broken Centrium Heavy Treads | 1% | -4/Factory Centrium Heavy Treads | 34% | -3/Research Imp. Powered Armor | 17% | -3/Testing Centrium Medium Armor Plating | 49% | -3/Testing Quantum Reactor | 45% | -3/Testing Studied --------- Lgt. Treads | -9/Materials | Hacked Arm. Treads | -8/Materials | Hacked Lgt. Nuclear Core | -8/Materials | Hacked Railgun | -4/Factory | Hacked Lrn. Proton Cannon | -4/Factory | Hacked Enh. Gauss Cannon | -4/Factory | Hacked Lrn. Missile Launcher | -4/Factory | Hacked Nova Cannon | -3/Research | Hacked Quantum Reactor | -3/Research | Hacked Adv. Heavy Treads | -3/Research | Hacked Mass Driver | -3/Research | Hacked Hvy. Gauss Cannon | -3/Testing | Hacked Enh. Force Lance | -3/Testing | Hacked Alien Tech Used ----------------- Integrated Reactor Achievements -------------- None Challenges ------------ None Game ------ Seed AerolevExoskeletonBox Manual? 0 Play Time 04:21:31 Cumulative 2016.1 hours Start 2025.11.05 @ 23:54:56 End 2025.11.06 @ 04:30:06 Sessions 3 Manual Loads 0 Difficulty Rogue Special Mode None Game No. 1314 Rogue 1310 Adventurer 4 Explorer 0 Win Type 1 Total 271 Types 203/13/21/10/3/1/4/9/5/2 Lore% 98 Gallery% 96 Achievement% 84 Wizard Run 0 Options --------- Layout 2 ASCII 0 Keyboard 1 Movement Vi Keybinds 0 Fullscreen 0 Font 24/Terminus Map View 59x48 Zoom Use 0% Tactical HUD 1 Map Filters NONE Filters NONE Steam 1 RUN: f369f6b2-96f3-4082-8b81-50ec7c69b5f1